{"text_format":"1","workbook":"xlsx","n_sheets":21,"sheets":["Cover Page","Contents","Facility Info","Operational Data","Operational Summary","Perf. Form 1","Energy Form 1","Permit Compliance","Improvements","Public Liasion","Residue Quality ","Water","Air (periodic)","Air (CEMS)","HCl","SO2","NOx","TOC","Particulates","CO 95% 10 min","NH3"],"not_rendered":{"charts":7,"images":2,"macros":1,"external_links":0,"defined_names":22,"comments":0,"pivot_tables":0},"unopened":[],"bounds":{"document_bytes":16777216,"sheet_cells":100000,"rows_first":2000,"rows_last":500,"rows_between":2000,"halvings":0,"cell_chars":16384,"cell_head_chars":4096},"cells_cut":0,"cells_raw":0,"read":"whole","date_system":"1900"}

{"sheet":"Cover Page","index":0,"n_rows":53,"n_cols":14,"rows_kept":53,"cut":false,"hidden":false,"merged":[[13,13,18,15],[34,1,34,8],[0,3,5,6],[7,1,23,8],[28,1,28,8],[30,1,30,8],[32,1,32,8],[48,2,48,3],[48,6,48,8],[52,2,52,3],[36,1,36,8],[40,2,40,8],[42,2,42,4],[44,2,44,4],[46,2,46,3],[46,6,46,8]]}
[null,null,null,"Add company logo"]
[null,null,null,null,null,null,null,null,null,null,null,null,null,"Version 20.1 "]
[]
[]
[]
[]
[]
[null,"Add photo"]
[]
[]
[]
[]
[null,null,null,null,null,null,null,null,null,null,null,null,null,"Notes:"]
[null,null,null,null,null,null,null,null,null,null,null,null,null,"This template may require adjustments by individual operators to meet specific reporting requirements as defined in the site Permit(s)"]
[]
[]
[]
[]
[]
[]
[]
[]
[]
[]
[]
[]
[]
[]
[null,"Annual Performance Report 2021"]
[]
[null,"Permit EPR/AP3835SM"]
[]
[null,"Wolverhampton Energy from Waste Facility"]
[]
[null,"MES Environmental Ltd."]
[]
[]
[]
[null,"Year:",2021]
[]
[null,"Address:","MES Environmental Ltd, Crown Street, Wolverhampton, WV1 1QB"]
[]
[null,"Tel: ","01902 458888"]
[]
[null,"Email: ","mes@mesenvironmental.co.uk"]
[]
[null,"Prepared by:","J Purnell",null,null,"Position:","Environmental Consultant "]
[]
[null,"Approved by:","S Danieli",null,null,"Position:","Managing Director"]
[]
[null,"Version:",1]
[]
[null,"Issue Date:","2022-01-31"]

{"sheet":"Contents","index":1,"n_rows":44,"n_cols":11,"rows_kept":44,"cut":false,"hidden":false,"merged":[[4,10,7,14],[8,1,8,6],[3,1,3,6],[4,1,4,6],[5,1,5,6],[6,1,6,6],[7,1,7,6],[20,1,20,6],[9,1,9,6],[10,1,10,6],[11,1,11,6],[12,1,12,6],[13,1,13,6],[14,1,14,6],[15,1,15,6],[16,1,16,6],[17,1,17,6],[18,1,18,6],[19,1,19,6],[35,1,35,6],[21,1,21,6],[22,1,22,6],[23,1,23,6],[26,1,26,6],[27,1,27,6],[28,1,28,6],[29,1,29,6],[30,1,30,6],[31,1,31,6],[34,1,34,6],[43,0,46,9],[36,1,36,6],[37,1,37,6],[38,1,38,6],[39,1,39,6],[40,1,40,6],[41,1,41,6]]}
[{"$f":"+'Cover Page'!$B$29","v":"Annual Performance Report 2021"},null,null,null,{"$f":"+'Cover Page'!$B$33","v":"Wolverhampton Energy from Waste Facility"}]
[]
["Contents",null,null,null,null,null,null,null,null,null,"Notes:"]
[null,"Subject",null,null,null,null,null,"Page ",null,null,"Section references and Page nos. to be inserted"]
[null,"Facility Information",null,null,null,null,null,4,null,null,"Sections and Subjects may require adjustment by individual operators to meet specific reporting requirements as defined in the sites Permit(s)"]
[null,"Operational Data",null,null,null,null,null,5]
[null,"Operational Summary",null,null,null,null,null,7]
[null,"Performance Form 1",null,null,null,null,null,8]
[null,"Energy Form 1",null,null,null,null,null,10]
[null,"Permit Compliance",null,null,null,null,null,11]
[null,"Improvements",null,null,null,null,null,12]
[null,"Public Liaison",null,null,null,null,null,13]
[null,"Residue Quality - Optional",null,null,null,null,null,14]
[null,"Emissions to Water",null,null,null,null,null,15]
[null,"Emissions to Air (periodically monitored)",null,null,null,null,null,16]
[null,"Emissions to Air (continuously monitored)",null,null,null,null,null,17]
[null,"Hydrogen Chloride emissions",null,null,null,null,null,19]
[null,"Sulphur Dioxide emissions",null,null,null,null,null,20]
[null,"Oxides of Nitrogen emissions",null,null,null,null,null,21]
[null,"Total Organic Carbon emissions",null,null,null,null,null,22]
[null,"Particulate Matter emissions",null,null,null,null,null,23]
[null,"Carbon Monoxide emissions",null,null,null,null,null,24]
[null,"Ammonia emissions",null,null,null,null,null,25]
[]
[]
["Version Control"]
["Section","Information",null,null,null,null,null,"Date"]
[]
[]
[]
[]
[]
[]
["Distribution"]
["Copy","Name, Role",null,null,null,null,null,"No."]
[]
[]
[]
[]
[]
[]
[]
[]
["This report is required under the Industrial Emissions Directive’s Article 55(2) requirements on reporting and public information on waste incineration plants and co-incineration plants, which require the operator to produce an annual report on the functioning and monitoring of the plant and make it available to the public. "]

{"sheet":"Facility Info","index":2,"n_rows":22,"n_cols":11,"rows_kept":22,"cut":false,"hidden":false,"merged":[[4,0,17,8],[21,0,53,8],[4,10,13,13],[21,10,30,13]]}
[{"$f":"+'Cover Page'!$B$29","v":"Annual Performance Report 2021"},null,null,null,{"$f":"+'Cover Page'!$B$33","v":"Wolverhampton Energy from Waste Facility"}]
[]
["Plant Description and Design",null,null,null,null,null,null,null,null,null,"Notes:"]
[]
["The installation provides a sustainable method of waste disposal and recovery, predominantly for the area within the administrative boundary of Wolverhampton Metropolitan Borough Council, with smaller quantities of wastes accepted, where capacity and demand exists, from other local authorities within the general vicinity of the plant.\n\nWith two combustion lines operating with a combined capacity of up to 14 tonnes per hour, the facility is able to process a maximum of around 118,000 tonnes of waste per year, providing an effective alternative for sending the waste to landfill.\n \nHeat produced during the incineration process is converted to electrical energy by generating steam in high-pressure boilers and expanding the steam through a steam turbine.  When operating at full load, the plant will typically generate around 8 MW of electricity and, after satisfying its own power needs, exports approximately 7.1 MW of electricity to the grid. \n",null,null,null,null,null,null,null,null,null,"Include summary of plant design, design capacity, no. of combustion lines, electrical and heat capacity and any other general information that describes the facility, its location and purpose "]
[]
[]
[]
[]
[]
[]
[]
[]
[]
[]
[]
[]
[]
[]
["Summary of Operational Processes and Procedures"]
[]
["The Plant is regulated under the terms of a Permit issued by the Environment Agency (reference AP3835SM) which contains conditions to ensure that the requirements of the Waste Incineration Directive are incorporated and will be met. \nMES Environmental operates all of its sites under an Integrated Management System certified to ISO 14001:2015 (environmental management), ISO 9001:2015 (quality management), and ISO 45001:2018 (health and safety management).  The company also maintains the globally recognised RoSPA Gold standard award, all of which helps to ensure that the company operates responsibly, safely, and efficiently, with regard to all of its operations. \nIn terms of plant operation, the incineration processes have been designed against the background of a detailed assessment of the prevailing environmental conditions at the site location, and are based upon the Best Available Technology (BAT) as detailed both in the original Authorisation application and the application for the Permit issued under the Pollution Prevention and Control (England and Wales) Regulations.  These include, but are not limited to, the following:\n• Well proven process plant developed specifically for incineration of municipal solid wastes\n• Efficient, comprehensive process control and monitoring systems to ensure optimum conditions for complete combustion of the wastes and to minimise emissions from the processes\n• Operations confined within buildings under slight negative pressure in order to contain and minimise emissions such as dust and odour\n• Qualified and experienced operating and maintenance personnel to implement procedures to ensure that the required high standards are maintained. Operating and Maintenance Procedures are established according to an internationally recognised system of quality assurance\n• Multi-stage high efficiency flue gas cleaning systems comprising deNOx Selective Non-Catalytic Reduction (SNCR) for the removal of oxides of nitrogen, activated carbon and lime semi-dry acid gas scrubbing for controlling acid gas, dioxins/furans and mercury emissions\n• Final stage flue gas abatement for particulate materials using fabric filtration\n• Residues from the combustion process and from the flue gas cleaning system disposed of by approved means, maximising recycling wherever possible\n• Waste water from the process is neutralised and recycled as far as is practicable to minimise the quantities released to sewers\n• Provision of bunds or double skinned vessels for storage of fuel and chemicals in order to prevent accidental and inappropriate discharge to the public sewers and watercourse\n",null,null,null,null,null,null,null,null,null,"Include summary of key processes and procedures such as (but not limited to); waste reception, control rooms, grate, bed and boiler, energy & heat  generation, cooling systems, residue management, emission controls, health and safety systems, maintenance"]

{"sheet":"Operational Data","index":3,"n_rows":65,"n_cols":11,"rows_kept":65,"cut":false,"hidden":false,"merged":[[3,1,3,2],[7,1,19,1],[23,1,26,1],[28,1,29,1],[52,0,56,0],[5,10,6,10],[7,10,18,10],[33,1,38,1],[30,2,30,5],[30,6,30,7]]}
[{"$f":"+'Cover Page'!$B$29","v":"Annual Performance Report 2021"},null,null,null,{"$f":"+'Cover Page'!$B$33","v":"Wolverhampton Energy from Waste Facility"}]
[]
["Operational Data",null,null,null,null,null,null,null,null,null,"Notes:"]
["Plant Size",118000,null,"tonnes pa",0,"MWth",8,"MWe",null,null,"* - RDF to include SRF "]
["No. of combustion lines",2,null,"No. of Turbines:",null,1,null,null,null,null,"** - CHP plants only"]
[null,null,null,null,null,null,null,null,null,null,"2020 updates include;  heat in MWh, water in Litres, NCV in MJ/kg"]
["Waste types received","Unit","Q1","Q2","Q3","Q4","Year Total","%"]
["Household / Local Authority","tonnes",28097.786031349704,29283.023357209589,25199.869441410516,28275.370744273481,{"$f":"SUM(C8:F8)","v":110856.04957424328},{"$f":"IF(G8>0,G8/$G$18,\"-\")","v":0.99034322497693617},null,null,"Availabiity Definition: 'the availability of a line is to be calculated by the number of hours the line reported Continuously Monitored emission levels to the Regulator through the calendar year divided by the total number of hours in that year. \nThe overall plant availability is calculated as the Mean of all lines in the plant. For clarity this includes periods of Other Than Normal Operating Conditions (OTNOC) and abnormal operation.'  \n\nRationale: The primary function of an Energy from Waste facility is the disposal of waste. It follows therefore that the availability of a plant is determined by the period of time a facility spends undertaking this activity."]
["Commercial & Industrial ",null,368.21396865029823,63.976642790407972,223.13055858948354,425.62925572651955,{"$f":"SUM(C9:F9)","v":1080.9504257567091},9.6567750230639494E-3]
["Hazardous ",null,0,0,0,0,0,"-"]
["Clinical",null,0,0,0,0,0,"-"]
["Waste wood (biomass) ",null,0,0,0,0,0,"-"]
["Refuse Derived Fuel * - H'hold/LA",null,0,0,0,0,{"$f":"SUM(C13:F13)","v":0},"-"]
["Refuse Derived Fuel *  - C&I",null,0,0,0,0,0,"-"]
["Other [Please specify]",null,0,0,null,0,0,"-"]
["Other [Please specify]",null,0,0,0,0,0,"-"]
["Other [Please specify]",null,0,0,0,0]
["Total waste received",null,{"$f":"SUM(C8:C17)","v":28466.000000000004},{"$f":"SUM(D8:D17)","v":29346.999999999996},{"$f":"SUM(E8:E17)","v":25423},{"$f":"SUM(F8:F17)","v":28701},{"$f":"SUM(G8:G17)","v":111936.99999999999},1]
["Rejected Waste ",null,0,0,0,0,{"$f":"SUM(C19:F19)","v":0},{"$f":"IF(G19>0,G19/$G$18,\"-\")","v":"-"}]
["Unprocessed waste transferred out",null,0,0,0,0,0,{"$f":"IF(G20>0,G20/$G$18,\"-\")","v":"-"}]
["Total waste combusted",null,{"$f":"C18-SUM(C19:C20)","v":28466.000000000004},{"$f":"D18-SUM(D19:D20)","v":29346.999999999996},25423,28701,{"$f":"SUM(C21:F21)","v":111937},{"$f":"IF(G21>0,G21/$G$18,\"-\")","v":1.0000000000000002}]
[]
["Energy Usage / Export","Unit","Q1","Q2","Q3","Q4","Year Total","KWh/te"]
["Power Generated","MWh",11864,12655,10430,11440,{"$f":"SUM(C24:F24)","v":46389},{"$f":"IF(G24>0,G24*1000/$G$21,\"-\")","v":414.42061159402164}]
["Power Exported",null,9756,10305,8439,9259,{"$f":"SUM(C25:F25)","v":37759},{"$f":"IF(G25>0,G25*1000/$G$21,\"-\")","v":337.32367313756845}]
["Power Used on site",null,2108,2350,1992,2181,{"$f":"SUM(C26:F26)","v":8631},{"$f":"IF(G26>0,G26*1000/$G$21,\"-\")","v":77.105872053029827}]
["Power Imported",null,142.19999999999999,100.9,120.7,131.5,495.3,{"$f":"IF(G27>0,G27*1000/$G$21,\"-\")","v":4.4248103844126607}]
["Parasitic Load","%",{"$f":"IF(C24>0,1-C25/(C24+C27),\"-\")","v":0.18741983308623877},{"$f":"IF(D24>0,1-D25/(D24+D27),\"-\")","v":0.19213853981294926},{"$f":"IF(E24>0,1-E25/(E24+E27),\"-\")","v":0.2001478574881288},{"$f":"IF(F24>0,1-F25/(F24+F27),\"-\")","v":0.19984444540465796},{"$f":"IF(G24>0,1-G25/(G24+G27),\"-\")","v":0.19463445119155032}]
["Thermal Energy Produced **","MWh",0,0,0,0,{"$f":"SUM(C29:F29)","v":0},{"$f":"IF(G29>0,G29*1000/$G$18,\"-\")","v":"-"}]
["Thermal Energy Exported **",null,0,0,0,0,0,"-"]
["R1 value",null,"n/a",null,null,null,"Design / Operational / n/a"]
[]
["Waste Disposal & Recovery","Unit","Q1","Q2","Q3","Q4","Year Total","% inputs"]
["APC Residues - produced","tonnes",772,774,844,771,{"$f":"SUM(C34:F34)","v":3161},{"$f":"IF(G34>0,G34/$G$21,\"-\")","v":2.8239098778777349E-2}]
["IBA - produced",null,4224,4998,4130,4508,17860,{"$f":"IF(G35>0,G35/$G$21,\"-\")","v":0.15955403485889383}]
["Metals recycling",null,396,410,348,396,{"$f":"SUM(C36:F36)","v":1550},{"$f":"IF(G36>0,G36/$G$21,\"-\")","v":1.3847074693800978E-2}]
["Other",null,0,0,0,0,{"$f":"SUM(C37:F37)","v":0},{"$f":"IF(G37>0,G37/$G$18,\"-\")","v":"-"}]
["Other",null,0,0,0,0,0,{"$f":"IF(G38>0,G38/$G$18,\"-\")","v":"-"}]
["Other",null,0,0,0,0,0,{"$f":"IF(G39>0,G39/$G$18,\"-\")","v":"-"}]
[]
["Raw Material Usage","Unit","Q1","Q2","Q3","Q4","Year Total","kg or Ltr /te"]
["Mains Water","ltrs",10450,11253,8315,10122,{"$f":"SUM(C42:F42)","v":40140},{"$f":"IF(G42>0,G42/$G$21,\"-\")","v":0.35859456658656208}]
["Other Water","ltrs",0,0,0,0,0,"-"]
["Ammonia","kgs",0,0,0,0,0,"-"]
["Urea","kgs",53000,66000,46000,45000,{"$f":"SUM(C45:F45)","v":210000},1.8760552810956164]
["Activated Carbon","kgs",2000,0,4000,5000,11000,9.8269562343103717E-2]
["Lime / hydrated lime","kgs",173000,201000,228000,231000,833000,7.4416859483459445]
["Fuel oil","ltrs",28329,21100,42665,34648,126742,1.1322618973172409]
["Gas","cf",0,0,0,0,0]
["Other",null,0,0,0,0,0]
[]
["Summary ","Line/Unit","Q1","Q2","Q3","Q4","Year Total",null,null,"Hrs in year "]
["Availability of waste combustion by line, hrs",1,2082.5,2175,1739.25,1945.5,{"$f":"SUM(C53:F53)","v":7942.25},0.90659999999999996,null,8760]
[null,2,1884,2176.5,1835,2153,8048.5,0.91879999999999995]
[]
[]
[]
["Overall Availability, mean avg. of all lines, hrs",null,{"$f":"AVERAGE(C53:C54)","v":1983.25},{"$f":"AVERAGE(D53:D54)","v":2175.75},1787.125,2049.25,{"$f":"AVERAGE(G53:G54)","v":7995.375},{"$f":"AVERAGE(H53:H54)","v":0.91269999999999996}]
["Hours of turbine operations, hrs",1,1974,2080.5,1859.25,2052.1,7965.85,0.9093]
[]
[]
["Net Calorific Value of waste","MJ/kg",7.8,8.58,7.96,8.15,null,"-"]
["Abnormal Events","qty.",0,0,1,1,2,{"$f":"IF(G63>0,\"yes\",\"no\")","v":"yes"}]
["Abnormal operation","hours",0,0,0.5,0.5,1,{"$f":"+(G64)/J53","v":1.1415525114155251E-4}]
["Permit Breaches","qty.",2,0,2,2,6,{"$f":"IF(G65>0,\"yes\",\"no\")","v":"yes"}]

{"sheet":"Operational Summary","index":4,"n_rows":31,"n_cols":11,"rows_kept":31,"cut":false,"hidden":false,"merged":[[4,0,26,8],[30,0,51,8],[4,10,13,13],[30,10,39,13]]}
[{"$f":"+'Cover Page'!$B$29","v":"Annual Performance Report 2021"},null,null,null,{"$f":"+'Cover Page'!$B$33","v":"Wolverhampton Energy from Waste Facility"}]
[]
["Summary of Plant Operations and Maintenance during the reporting year",null,null,null,null,null,null,null,null,null,"Notes:"]
[]
["• As with 2020, 2021 has been a challenging year with direct and indirect effects of COVID-19. The main challenges were with the availability of parts, service suppliers and our own staff suffering infections or self-isolating due to infection of family members. \nThrough the implementation of stringent control measures, the plant was able to perform well with regard to waste throughput, availability and electricity production.\nDespite of the pandemic, 2021 statutory inspections were performed as required, and increased COVID-19 control measures were introduced during the outage periods to ensure worker and contractor safety.\n• In 2021 tube leaks have been the main reason of boiler unavailability in Wolverhampton followed by common parts issues (i.e. electrical failure, steam leaks and failed valves). The overall boiler availability for the year was 91%.\nThe turbine unavailability has been mainly triggered by boilers and common part issues (i.e. electrical failure, steam leaks and failed valves) and issues with the vacuum level.  The overall turbine availability for the year was 91%.\n• Extensive scheduled maintenance was undertaken at the plants annual planned shutdown period:\no Boilers thorough inspections performed. Thin pipes and worn refractory renewed.\no Soot blowers and air hammers inspected and maintained. o Combustion system thoroughly inspected and worn parts replaced. \no Auxiliary burners inspected and serviced. o Hydraulic packs serviced.\no Both boiler pressure relief valves, as well as common vessels and main valves inspected / serviced.\no Bag house filters and scrubbers cleaned, inspected and repaired where needed. The program of bags replacement continued.\no Ducting and expansion joints inspections and repairs made. o Fly ash and bottom ash conveyors inspected and serviced. \no Lime, urea and activated carbon systems cleaned and inspected. \no Main fans and pumps inspected and serviced. The main electrical motors have been tested. o Main instrumentation calibrated. \no Turbine, generator and gearbox serviced. Turbine blading borescope inspection carried out. Generator electrical test performed. o Main electrical systems inspected and tested. \nSpecific additional works completed during the annual shutdown:\no The sealing boxes of the roof of the 2nd pass of boiler 1 have been refurbished, including the sealing concrete. \no In boiler 1 have been replaced the feed table with castings, a large section of the feed chute and the “transition piece” of the ash discharger.\no The top of the cone of scrubber 1 have been externally inspected and the trace heating system renewed where needed.  \no The alignment of the turbine train has been checked and corrected. \nSignificant works completed outside the annual shutdown:\no Replacement of the 11/33 kV transformer Neutral Earthing Resistor. o Service of the tap changer.\no 11/33 kV transformer inspection.  o Testing of the protection relays.  o 11 kV and 33 kV switchgears inspection and maintenance.\no External repairs to the concrete of the wind shield of the stack. o Full refurbishment of the waste bunker roof. \n• About health & safety:\no The fume extraction system for use by welders during boiler internal repairs has been improved and consolidated.  \no The program of fitting spring-loaded gates instead of chains on vertical ladders continues. \no The installation of additional power supplies to reduce the amount of trailing leads during shutdowns continues. \n• Site security has been largely improved by mean of fencing, LED lamps and magnetic locks to the main access doors to the plant. \n",null,null,null,null,null,null,null,null,null,"Include summary of key operational and/or mainteanance activity undertaken in the year, such as any major component upgrades and/or replacements "]
[]
[]
[]
[]
[]
[]
[]
[]
[]
[]
[]
[]
[]
[]
[]
[]
[]
[]
[]
[]
[]
[]
[]
["Summary of Residue Handling for the reporting year"]
[]
["There are two main sources of residue that arise from the operation of the plant;  Incinerator Bottom ash (IBA) (which also includes ferrous metals discharged within the ash), and residues from the flue gas treatment system - known as Air Pollution Control residue (APCr).\n\nResidues from the flue gas treatment process (APCr) are discharged into an enclosed system which feed into double-skinned heavy-duty bags prior to removal from site for controlled treatment and disposal.  These residues account for around 5% of the total weight of all refuse processed by the facility.\n\nThe bottom ash produced by the site represents around 10% of the original volume of the refuse processed, and around 20% of its weight.  Bottom ash residues are discharged from the lower end of each grate into a water filled ash discharger, where it is quenched and then ejected onto a conveyor system. Larger items are screened out and ferrous metals are removed via magnetic separation.  \nThe resulting material is stored in the storage bunkers prior to removal from site for recycling - the storage capacity for bottom ash residues and separated ferrous metals is sufficient to ensure 4 days storage. Collections for delivery to further processing or treatment sites are made on Mondays to Fridays and are scheduled to ensure sufficient storage capacity is maintained at all times. Collections are available at weekends if operational conditions require this facility.\nBottom ash is now widely used in the UK and Europe as a substitute for valuable primary aggregate materials in the construction of roads and embankments.  Bottom ash from MES Environmental is currently being reprocessed, with additional ferrous and trace metals being removed, and the remaining material being further processed into usable aggregate in a zero to landfill process.",null,null,null,null,null,null,null,null,null,"Include in here a summary of residue handling regimes and destinations "]

{"sheet":"Perf. Form 1","index":5,"n_rows":54,"n_cols":10,"rows_kept":54,"cut":false,"hidden":false,"merged":[[9,0,9,9],[10,0,10,1],[10,2,10,3],[10,4,10,5],[10,6,10,7],[10,8,10,9],[2,0,2,4],[2,6,2,8],[3,1,3,4],[5,3,5,4],[5,6,5,7],[8,0,8,1],[8,2,8,3],[8,4,8,5],[8,6,8,7],[8,8,8,9],[11,0,11,1],[11,2,11,3],[11,4,11,5],[11,6,11,7],[11,8,11,9],[12,0,12,1],[12,2,12,3],[12,4,12,5],[12,6,12,7],[12,8,12,9],[15,0,15,1],[15,2,15,3],[15,4,15,5],[15,6,15,7],[15,8,15,9],[16,0,16,9],[13,0,13,1],[13,2,13,3],[13,4,13,5],[13,6,13,7],[13,8,13,9],[14,0,14,3],[14,4,14,5],[14,6,14,7],[14,8,14,9],[17,0,17,1],[17,2,17,3],[17,4,17,5],[17,6,17,7],[17,8,17,9],[18,0,18,1],[18,2,18,3],[18,4,18,5],[18,6,18,7],[18,8,18,9],[19,0,19,1],[19,2,19,3],[19,4,19,5],[19,6,19,7],[19,8,19,9],[20,0,20,1],[20,2,20,3],[20,4,20,5],[20,6,20,7],[20,8,20,9],[21,0,21,1],[21,2,21,3],[21,4,21,5],[21,6,21,7],[21,8,21,9],[22,0,22,3],[22,4,22,5],[22,6,22,7],[22,8,22,9],[31,0,31,3],[31,7,31,8],[32,0,32,3],[32,4,32,5],[32,7,32,8],[33,0,33,3],[33,4,33,5],[33,7,33,8],[23,0,23,3],[23,4,23,5],[23,6,23,7],[23,8,23,9],[25,0,25,9],[26,0,28,9],[36,0,36,3],[36,4,36,5],[36,7,36,8],[37,0,37,3],[37,4,37,5],[37,7,37,8],[34,0,34,3],[34,4,34,5],[34,7,34,8],[35,0,35,3],[35,4,35,5],[35,7,35,8],[47,0,47,1],[49,0,49,9],[50,0,51,9],[38,0,38,9],[39,0,40,9],[43,0,43,1],[43,2,43,9],[45,0,45,1],[46,0,46,1]]}
[{"$f":"+'Cover Page'!C39","v":2021}," Annual Reporting Performance Form 1"]
[]
[{"$f":"+'Cover Page'!B31","v":"Permit EPR/AP3835SM"},null,null,null,null,"Operator: ","MES Environmental"]
["Facility:",{"$f":"+'Cover Page'!B33:I33","v":"Wolverhampton Energy from Waste Facility"},null,null,null,"Form:","Performance 1"]
[]
["Reporting  Period from: ",null,null,"2021-01-01",null,"to:","2021-12-31"]
[]
[{"$f":"+A1","v":2021},"Annual Reporting of Waste Disposal and Recovery"]
["Waste Description",null,"Disposal Route(s)",null,"Disposal Tonnes",null,"Recovery Tonnes",null,"% / tonne of waste incinerated"]
["1) Hazardous Wastes"]
["APC Residues",null,"D13",null,{"$f":"'Operational Data'!G34","v":3161},null,null,null,{"$f":"IF((E11+G11)>0,(E11+G11)/'Operational Data'!$G$21, \"-\")","v":2.8239098778777349E-2}]
["IBA",null,null,null,null,null,null,null,{"$f":"IF((E12+G12)>0,(E12+G12)/'Operational Data'!$G$21, \"-\")","v":"-"}]
[null,null,null,null,null,null,null,null,{"$f":"IF((E13+G13)>0,(E13+G13)/'Operational Data'!$G$21, \"-\")","v":"-"}]
[null,null,null,null,null,null,null,null,{"$f":"IF((E14+G14)>0,(E14+G14)/'Operational Data'!$G$21, \"-\")","v":"-"}]
["Total Hazardous Waste",null,null,null,{"$f":"SUM(E11:F14)","v":3161},null,{"$f":"SUM(G11:H14)","v":0},null,{"$f":"IF((E15+G15)>0,(E15+G15)/'Operational Data'!$G$21, \"-\")","v":2.8239098778777349E-2}]
[]
["2) Non-Hazardous Wastes"]
["IBA",null,"R04",null,null,null,{"$f":"'Operational Data'!G35","v":17860},null,{"$f":"IF((E18+G18)>0,(E18+G18)/'Operational Data'!$G$21, \"-\")","v":0.15955403485889383}]
["Ferrous Metal",null,"R04",null,null,null,{"$f":"'Operational Data'!G36","v":1550},null,{"$f":"IF((E19+G19)>0,(E19+G19)/'Operational Data'!$G$21, \"-\")","v":1.3847074693800978E-2}]
["Process Water",null,null,null,80,null,null,null,{"$f":"IF((E20+G20)>0,(E20+G20)/'Operational Data'!$G$21, \"-\")","v":7.1468772613166335E-4}]
[null,null,null,null,null,null,null,null,{"$f":"IF((E21+G21)>0,(E21+G21)/'Operational Data'!$G$21, \"-\")","v":"-"}]
[null,null,null,null,null,null,null,null,{"$f":"IF((E22+G22)>0,(E22+G22)/'Operational Data'!$G$21, \"-\")","v":"-"}]
["Total Non-Hazardous Waste",null,null,null,{"$f":"SUM(E18:F22)","v":80},null,{"$f":"SUM(G18:H22)","v":19410},null,{"$f":"IF((E23+G23)>0,(E23+G23)/'Operational Data'!$G$21, \"-\")","v":0.17411579727882648}]
["TOTAL WASTE",null,null,null,{"$f":"+E23+E15","v":3241},null,{"$f":"+G23+G15","v":19410},null,{"$f":"IF((E24+G24)>0,(E24+G24)/'Operational Data'!$G$21, \"-\")","v":0.20235489605760382}]
[]
["Operator’s comments :"]
[]
[]
[]
[]
[{"$f":"+A1","v":2021},"Annual Reporting of Water and Other Raw Material Usage"]
["Raw Material",null,null,null,"Usage",null,"Unit","Specific Useage",null,"Unit"]
["Mains Water",null,null,null,{"$f":"+'Operational Data'!G42","v":40140},null,"m3",{"$f":"IF(E33>0,E33/'Operational Data'!$G$21,\"-\")","v":0.35859456658656208},null,"m3/te"]
["Total Water",null,null,null,{"$f":"+'Operational Data'!G43+'Operational Data'!G42","v":40140},null,"m3",{"$f":"IF(E34>0,E34/'Operational Data'!$G$21,\"-\")","v":0.35859456658656208},null,"m3/te"]
["Urea / Ammonia",null,null,null,{"$f":"+'Operational Data'!G45","v":210000},null,"kg",{"$f":"IF(E35>0,E35/'Operational Data'!$G$21,\"-\")","v":1.8760552810956164},null,"kg/te"]
["Activated Carbon",null,null,null,{"$f":"+'Operational Data'!G46","v":11000},null,"kg",{"$f":"IF(E36>0,E36/'Operational Data'!$G$21,\"-\")","v":9.8269562343103717E-2},null,"kg/te"]
["Lime / hydrated lime / Sodium Bicarb.",null,null,null,{"$f":"+'Operational Data'!G47","v":833000},null,"kg",{"$f":"IF(E37>0,E37/'Operational Data'!$G$21,\"-\")","v":7.4416859483459445},null,"kg/te"]
[]
["Operator’s comments :"]
[]
[]
[]
[{"$f":"+A31","v":2021},"Annual Reporting of other performance indicators "]
["Parameter",null,"Results by Line"]
[null,null,"A1","A2","A3","A4","A5",null,"Turbine 1","Turbine 2"]
["Operating hours for the year, hours",null,{"$f":"'Operational Data'!G53","v":7942.25},{"$f":"'Operational Data'!G54","v":8048.5},null,null,null,null,{"$f":"'Operational Data'!G59","v":7965.85}]
["Number of periods of abnormal operation, qty.",null,1,0]
["Cumulative hours of abnormal operation for this year, hours",null,0.5,0]
[]
["Operator’s comments :"]
[]
[]
[]
["Signed: ","J Purnell",null,null,null,null,"Date:","2022-01-31"]

{"sheet":"Energy Form 1","index":6,"n_rows":29,"n_cols":8,"rows_kept":29,"cut":false,"hidden":false,"merged":[[2,6,2,8],[4,1,4,4],[6,3,6,4],[6,6,6,7],[8,0,8,2],[8,3,8,4],[8,6,8,8],[9,0,9,2],[9,3,9,4],[9,6,9,8],[10,0,10,2],[10,3,10,4],[10,6,10,8],[11,0,11,2],[11,3,11,4],[11,6,11,8],[12,0,12,2],[12,3,12,4],[12,6,12,8],[13,0,13,2],[13,3,13,4],[13,6,13,8],[14,0,14,2],[14,3,14,4],[14,6,14,8],[15,0,15,2],[15,3,15,4],[15,6,15,8],[17,0,17,8],[18,0,24,8]]}
[{"$f":"+'Cover Page'!C39","v":2021}," Annual Reporting of Energy Usage/Export"]
[]
[{"$f":"+'Cover Page'!B31","v":"Permit EPR/AP3835SM"},null,null,null,null,"Operator: ","MES Environmental"]
[]
["Facility:",{"$f":"+'Cover Page'!B33:I33","v":"Wolverhampton Energy from Waste Facility"},null,null,null,"Form:","Energy 1"]
[]
["Reporting  Period from: ",null,null,{"$f":"+'Perf. Form 1'!D6:E6","v":"2021-01-01"},null,"to:",{"$f":"+'Perf. Form 1'!G6:H6","v":"2021-12-31"}]
[]
["Energy Source",null,null,"Energy Usage",null,"Unit","Specific Useage (KWh/tonne incinerated"]
["Electricity Produced",null,null,{"$f":"+'Operational Data'!G24","v":46389},null,"MWh",{"$f":"+'Operational Data'!H24","v":414.42061159402164}]
["Electricity Imported   ",null,null,{"$f":"+'Operational Data'!G27","v":495.3},null,"MWh",{"$f":"+'Operational Data'!H27","v":4.4248103844126607}]
["Electricity Exported",null,null,{"$f":"+'Operational Data'!G25","v":37759},null,"MWh",{"$f":"+'Operational Data'!H25","v":337.32367313756845}]
["Gas Oil",null,null,{"$f":"'Operational Data'!G48*0.00089013","v":112.81685646000001},null,"tonnes"]
["Steam/hot water exported",null,null,{"$f":"+'Operational Data'!G30","v":0},null,"GWh",{"$f":"+'Operational Data'!H30","v":"-"}]
[]
[]
[]
["Operator’s comments :"]
[]
[]
[]
[]
[]
[]
[]
[]
[]
[]
["Signed: ","J Purnell",null,null,null,null,"Date:","2022-01-31"]

{"sheet":"Permit Compliance","index":7,"n_rows":41,"n_cols":12,"rows_kept":41,"cut":false,"hidden":false,"merged":[[29,7,29,8],[30,7,30,8],[24,7,24,8],[25,7,25,8],[26,7,26,8],[27,7,27,8],[28,7,28,8],[26,4,26,6],[27,4,27,6],[28,4,28,6],[29,4,29,6],[30,4,30,6],[8,11,17,14],[40,4,40,8],[9,0,9,1],[9,2,9,4],[9,5,9,8],[10,0,10,1],[10,2,10,4],[10,5,10,8],[11,0,11,1],[11,2,11,4],[11,5,11,8],[12,0,12,1],[12,2,12,4],[12,5,12,8],[13,0,13,1],[13,2,13,4],[7,0,7,1],[7,2,7,8],[8,0,8,1],[8,2,8,4],[8,5,8,8],[13,5,13,8],[14,0,14,1],[14,2,14,4],[14,5,14,8],[15,0,15,1],[16,2,16,4],[16,5,16,8],[15,2,15,4],[15,5,15,8],[16,0,16,1],[19,1,19,3],[19,4,19,6],[19,7,19,9],[20,1,20,3],[20,4,20,6],[20,7,20,9],[31,7,31,9],[21,1,21,3],[21,4,21,6],[21,7,21,9],[22,1,22,3],[22,4,22,6],[22,7,22,9],[24,1,24,3],[25,1,25,3],[26,1,26,3],[28,1,28,3],[27,1,27,3],[29,1,29,3],[30,1,30,3],[24,4,24,6],[25,4,25,6],[39,1,39,3],[39,4,39,6],[39,7,39,9],[36,1,36,3],[36,4,36,6],[36,7,36,9],[37,1,37,3],[37,4,37,6],[37,7,37,9],[33,0,33,10],[18,0,18,10],[38,1,38,3],[38,4,38,6],[38,7,38,9],[34,1,34,3],[34,4,34,6],[34,7,34,9],[35,1,35,3],[35,4,35,6],[35,7,35,9],[23,1,23,3],[23,4,23,6],[23,7,23,9],[31,1,31,3],[31,4,31,6]]}
[{"$f":"+'Cover Page'!$B$29","v":"Annual Performance Report 2021"},null,null,null,{"$f":"+'Cover Page'!$B$33","v":"Wolverhampton Energy from Waste Facility"}]
[]
["Summary of Permit Compliance"]
[]
["Compliance with permit limits for continuously monitored pollutants"]
[]
["The plant met its emission limits as shown in the table below:"]
["Substance",null,"Percentage time compliant during operation",null,null,null,null,null,null,null,null,"Notes:"]
[null,null,"Half-hourly limit",null,null,"Daily limit",null,null,null,null,null,"Report to 2 decimal places, i.e. xx.xx%\n\nPlease provide a brief summary of each notification or non-compliance in the table (rather than just referring to notifications that were sent to the Regulator).  \n\n"]
["Particulates",null,1,null,null,1]
["Oxides of nitrogen",null,1,null,null,1]
["Sulphur dioxide",null,1,null,null,1]
["Carbon monoxide",null,1,null,null,1]
["Total organic carbon",null,1,null,null,1]
["Hydrogen chloride",null,0.99990000000000001,null,null,0.99729999999999996]
["Hydrogen fluoride",null,1,null,null,1]
["Average",null,1,null,null,0.99960000000000004]
[]
["Summary of any notifications or non-compliances under the permit"]
["Date","Summary of notification or non-compliance [including Line/Reference]",null,null,"Reason ",null,null,"Measures taken to prevent reoccurrence"]
["2021-03-03","A1, HCl, Half hourly limit ",null,null,"Poor waste composition",null,null,"Lime flow increased "]
["2021-03-08","A1, Hg, Periodic ELV ",null,null,"Rogue waste element ",null,null,"Increased mixing of waste "]
["2021-08-17","A1, VOC, Half hourly limit ",null,null,"Volatile waste ",null,null,"Increased mixing of waste "]
["2021-08-20","A1, Dioxin, Periodic ELV ",null,null,"Unknown, no cause determined ",null,null,"Investigation performed "]
["2021-10-24","A2, HCl, Daily limit ",null,null,"Equipment failure ",null,null,"Equipment repaired "]
["2021-12-19","A1, HCl, Half hourly limit ",null,null,"Poor waste composition",null,null,"Increased lime flow "]
[]
[]
[]
[]
[]
[]
[]
["Summary of any complaints received and actions to taken to resolve them."]
["Date","Summary of complaint [including Line/Reference]",null,null,"Reason *",null,null,"Measures taken to prevent reoccurrence"]
["2021-08-01","Noise complaint during start up after outage ",null,null,"Relief valve failure",null,null,"Increased start up checks "]
[]
[]
[]
[]
[null,null,null,null,"* including whether substantiated by the operator or the EA"]

{"sheet":"Improvements","index":8,"n_rows":39,"n_cols":5,"rows_kept":39,"cut":false,"hidden":false,"merged":[[37,0,37,9],[38,0,47,9],[4,0,4,9],[5,0,13,9],[15,0,15,9],[16,0,24,9],[26,0,26,9],[27,0,35,9]]}
[{"$f":"+'Cover Page'!$B$29","v":"Annual Performance Report 2021"},null,null,null,{"$f":"+'Cover Page'!$B$33","v":"Wolverhampton Energy from Waste Facility"}]
[]
["Summary of Plant Improvements"]
[]
["Summary of any efficiency improvements that have been completed within the year."]
["• LED lamp replacement is an ongoing project.\n• The enhanced cleaning regime on the ACC is a consolidated practice (2 times/year). During the outage, the blades of the ACC fans are cleaned and the blade tip angles checked and adjusted.\n• The installation of 2 upgraded air ejectors, combined with a robust programme of air leak detection and repair has led to good vacuum, which improves output from the turbine. \n• Implemented a ultrasonic cleaning machine for the lime discs to improve the efficiency of the lime slurry injection.\nImplemented 18 holes lime discs for a more efficient lime slurry distribution.\n• Continued the replacement program of damaged lagging.\n• Continued the installation of frequency converters (FD fan 1). The FD fan 2 will be fitted with frequency converter during the 2022 outage. \n"]
[]
[]
[]
[]
[]
[]
[]
[]
[]
["Summary of any permit improvement conditions that have been completed within the year and the resulting environmental benefits."]
["All permit improvement conditions were completed prior to 2021."]
[]
[]
[]
[]
[]
[]
[]
[]
[]
["Summary of any changes to the plant or operating techniques which required a variation to the permit and a summary of the resulting environmental impact."]
["No permit variations were required during 2021."]
[]
[]
[]
[]
[]
[]
[]
[]
[]
["Summary of any other improvements made to the plant or planned to be made and a summary of the resulting environmental benefits."]
["• The manifold of the lime slurry pumps has been replaced to improve reliability and reduce leakage. \n• Wells have been installed and underground water investigation carried out. Underground gas and soil samples have also been analysed.\n• Waste bunker n. 2 has been inspected and the repair of a crack commenced. Works will be completed in 2022. \nThe inspection program and repair of the underground drains continues.  \n• The electrical panel of the effluent plant has been renewed.\n• Two dust probes have been replaced with new upgraded units.\nFollowing the Environment Agency recommendation, CO2 and N2O analysers have been installed. Calibration of gas flow meters will be tentatively performed in 2022 together with QAL2. \n• Installation of turbine bearings early warning fire detection systems.\n• The sub-cooler and the MP bundle of the air heater of boiler 1 has been replaced in the 2021 annual shutdown. This improved the under fire air temperatures.\n• A few areas of boiler 1 have been Hastelloy cladded with HVTS (High velocity Thermal Spray) to improve the reliability of the unit. \n• Replaced stream 1 anion resins of the demin plant. \n"]

{"sheet":"Public Liasion","index":9,"n_rows":29,"n_cols":5,"rows_kept":29,"cut":false,"hidden":false,"merged":[[16,0,16,1],[16,2,16,9],[5,0,5,1],[5,2,5,9],[6,0,7,1],[6,2,7,9],[8,0,9,1],[8,2,9,9],[10,0,11,1],[10,2,11,9],[12,0,13,1],[12,2,13,9],[15,0,15,9],[17,0,18,1],[17,2,18,9],[19,0,20,1],[19,2,20,9],[21,0,22,1],[21,2,22,9],[23,0,24,1],[23,2,24,9],[25,0,26,1],[25,2,26,9],[28,0,28,9]]}
[{"$f":"+'Cover Page'!$B$29","v":"Annual Performance Report 2021"},null,null,null,{"$f":"+'Cover Page'!$B$33","v":"Wolverhampton Energy from Waste Facility"}]
[]
["Details of Public & Stakeholder Liasion"]
[]
["Summary of events held during the reporting year."]
["Date",null,"Description"]
["Across 2021",null,"MESE conducts monthly meetings with its core stakeholders in order discuss operational, health and safety, and environmental performance."]
[]
[]
[]
[]
[]
[]
[]
[]
["List of events planned for next year"]
["Date",null,"Description"]
[2022,null,"MESE will continue to meet with its core stakeholders on a monthly basis."]
[]
[]
[]
[]
[]
[]
[]
[]
[]
[]
["If you wish to be involved in the public liasion programme, please contact _________________"]

{"sheet":"Residue Quality ","index":10,"n_rows":36,"n_cols":6,"rows_kept":36,"cut":false,"hidden":false,"merged":[[16,0,17,1],[16,2,17,6],[18,0,19,1],[18,2,19,6],[12,0,12,6],[13,0,13,1],[13,2,13,6],[5,0,6,6],[7,0,8,6],[9,0,10,6],[14,0,15,1],[14,2,15,6],[20,0,21,1],[20,2,21,6],[22,0,23,1],[22,2,23,6],[31,3,31,4],[27,2,28,2],[28,3,28,4],[28,5,28,6],[27,3,27,6],[26,0,26,6],[35,0,40,6],[32,3,32,4],[34,0,34,6],[27,0,28,1],[29,0,29,1],[30,0,30,1],[31,0,31,1],[32,0,32,1],[29,3,29,4],[30,3,30,4],[29,5,29,6],[30,5,30,6],[31,5,31,6],[32,5,32,6]]}
[{"$f":"+'Cover Page'!$B$29","v":"Annual Performance Report 2021"},null,null,null,{"$f":"+'Cover Page'!$B$33","v":"Wolverhampton Energy from Waste Facility"}]
[]
["Residue Quality Monitoring Requirements"]
[]
["Summary of monitoring undertaken and compliance"]
["24 sample IBA monitoring scheme undertaken as per the ESA protocol"]
[]
["2 IBA samples taken direct from each unit's ash discharger and subjected to full hazard assessment against WM3 - both samples found to be below the hazard thresholds for all applicable hazard categories"]
[]
["Quarterly APCr monitoring performed.  "]
[]
[]
["Commentary on any specific events"]
["Date & Event",null,"Description"]
[]
[]
[]
[]
[]
[]
[]
[]
[]
[]
[]
[]
["Residue Quality Monitoring Results"]
["Parameter (unit) ",null,"Limit","Normal Operation "]
[null,null,null,"Bottom ash  ",null,"APC Residues"]
["Loss on Ignition (average %)",null,"<5%",6.63]
["Total Organic Carbon (average %)",null,"<3%",0.87]
["No. of Assessments Undertaken",null,"---",24,null,8]
["No. of Hazardous Results",null,"---",0]
[]
["Comments :"]
["The Loss on Ignition and TOC values above represent the average observed over all samples taken during 2021"]

{"sheet":"Water","index":11,"n_rows":30,"n_cols":10,"rows_kept":30,"cut":false,"hidden":false,"merged":[[5,0,6,9],[7,0,8,9],[9,0,10,9],[12,0,12,9],[13,0,13,1],[13,2,13,9],[21,0,21,9],[22,0,22,2],[22,3,22,5],[14,0,15,1],[14,2,15,9],[16,0,17,1],[16,2,17,9],[18,0,19,1],[18,2,19,9],[23,0,23,2],[23,3,23,5],[24,0,24,2],[24,3,24,5],[25,0,25,2],[25,3,25,5],[29,0,29,2],[29,3,29,5],[26,0,26,2],[26,3,26,5],[27,0,27,2],[27,3,27,5],[28,0,28,2],[28,3,28,5]]}
[{"$f":"+'Cover Page'!$B$29","v":"Annual Performance Report 2021"},null,null,null,{"$f":"+'Cover Page'!$B$33","v":"Wolverhampton Energy from Waste Facility"}]
[]
["Emissions to Water"]
[]
["Summary of monitoring undertaken and compliance"]
["Annual sample taken and analysed.  All results below limits given in discharge consent.  "]
[]
["Waste water arising from the process is neutralised and recycled as far as is practicible in order to minimise the quantity released to sewer."]
[]
[]
[]
[]
["Commentary on any specific events"]
["Date & Event",null,"Description"]
[]
[]
[]
[]
[]
[]
[]
["Emissions to Water / Sewer"]
["Parameter",null,null,"Monitoring Frequency",null,null,"Limit","Target","Max.","Average"]
["pH",null,null,"Continuous",null,null,"6 - 10","6 - 10",8,8]
["Total Suspended Solids (TSS)",null,null,"Annual",null,null,"400 mg/L","<400 mg/L",4,4]
["Chemical Oxygen Demand (COD)",null,null,"Annual",null,null,"800 mg/L","<800 mg/L",18,18]
["Zinc ",null,null,"Annual",null,null,"5 mg/L","<5 mg/L",0.05,0.05]
["Sulphate",null,null,"Annual",null,null,"1000 mg/L","<1000 mg/L",67.3,67.3]
["Phosphorus",null,null,"Annual",null,null,"25 mg/L","<25 mg/L",0.25,0.25]
["Oil",null,null,"Annual",null,null,"nil","nil","nil","nil"]

{"sheet":"Air (periodic)","index":12,"n_rows":39,"n_cols":13,"rows_kept":39,"cut":false,"hidden":false,"merged":[[5,12,8,15],[9,12,11,15],[8,0,8,9],[5,0,6,9],[11,0,11,1],[12,0,12,1],[11,3,11,4],[12,3,12,4],[9,0,10,1],[9,5,9,9],[9,3,10,4],[9,2,10,2],[16,0,16,1],[17,0,17,1],[18,0,18,1],[13,0,13,1],[14,0,14,1],[15,0,15,1],[39,0,40,9],[25,0,25,1],[26,0,26,1],[22,0,22,1],[23,0,23,1],[37,0,37,1],[27,0,27,1],[28,0,28,1],[29,0,29,1],[30,0,30,1],[31,0,31,1],[32,0,32,1],[37,3,37,4],[29,3,29,4],[30,3,30,4],[36,3,36,4],[38,0,38,9],[19,0,19,1],[20,0,20,1],[21,0,21,1],[34,3,34,4],[35,3,35,4],[33,0,33,1],[34,0,34,1],[35,0,35,1],[36,0,36,1],[24,0,24,1],[32,3,32,4],[13,3,13,4],[14,3,14,4],[15,3,15,4],[16,3,16,4],[17,3,17,4],[18,3,18,4],[27,3,27,4],[33,3,33,4],[19,3,19,4],[20,3,20,4],[21,3,21,4],[22,3,22,4],[23,3,23,4],[24,3,24,4],[31,3,31,4],[25,3,25,4],[26,3,26,4],[28,3,28,4]]}
[{"$f":"+'Cover Page'!$B$29","v":"Annual Performance Report 2021"},null,null,null,{"$f":"+'Cover Page'!$B$33","v":"Wolverhampton Energy from Waste Facility"}]
[]
["Emissions to Air (periodically monitored)"]
[]
["Summary of monitoring undertaken, standards used and compliance",null,null,null,null,null,null,null,null,null,null,null,"Notes:"]
["Periodic monitoring of the substances listed below are undertaken as per the conditions listed in the permit.",null,null,null,null,null,null,null,null,null,null,null,"Template may require adjustment for any bespoke monitoring requirements of permit. "]
[]
[]
["Results of emissions to air that are periodically monitored"]
["Substance",null,"Ref. Period","Emission Limit Value",null,"Average",null,null,null,null,null,null,"User to add additional tables as necessary, depending on whether quarterly or bi-annual reporting is required for the compliance year"]
[null,null,null,null,null,"A1","A2","A3","A4","A5"]
["Hydrogen fluoride",null,"1 hr","2 mg/m3",null,0.16250000000000001,0.10500000000000001]
["Cd and Th and their compounds",null,"6-8hrs","0.05 mg/m3",null,1.8E-3,1.7499999999999998E-3]
["Hg and its compounds",null,"6-8hrs","0.05 mg/m3",null,1.89E-2,7.3499999999999998E-3]
["Sb, As, Pb, Cr, Co, Cu, Mn, Ni, V and their compounds",null,"6-8hrs","0.5 mg/m3",null,5.2275000000000002E-2,7.4175000000000005E-2]
["Dioxins & Furans (I-TEQ)",null,"6-8hrs","0.1 ng/m3",null,8.7899999999999992E-2,7.1250000000000008E-2]
["PCBs (WHO-TEQ Humans / Mammals)",null,"6-8hrs","None set ng/m3",null,7.899999999999999E-3,4.3E-3]
["PCBs (WHO-TEQ Fish)",null,"6-8hrs","None set ng/m3",null,3.9999999999999996E-4,1.9999999999999998E-4]
["PCBs (WHO-TEQ Birds)",null,"6-8hrs","None set ng/m3",null,1.545E-2,8.5000000000000006E-3]
["Dioxins & Furans (WHO-TEQ Humans / Mammals)",null,"6-8hrs","None set ng/m3",null,8.1466666666666673E-2,6.8900000000000003E-2]
["Dioxins & Furans (WHO-TEQ Fish)",null,"6-8hrs","None set ng/m3",null,9.3666666666666676E-2,7.6549999999999993E-2]
["Dioxins & Furans (WHO-TEQ Birds)",null,"6-8hrs","None set ng/m3",null,0.14793333333333333,0.11849999999999999]
["Anthanthrene",null,"6-8hrs","None set µg/m3",null,8.0499999999999999E-3,7.6E-3]
["Benzo(a)anthracene",null,"6-8hrs","None set µg/m3",null,1.3299999999999999E-2,7.6E-3]
["Benzo(a)pyrene",null,"6-8hrs","None set µg/m3",null,8.0499999999999999E-3,7.6E-3]
["Benzo(b)fluoranthene",null,"6-8hrs","None set µg/m3",null,8.9999999999999993E-3,7.6E-3]
["Benzo(b)naptho(2,1-d) thiophene",null,"6-8hrs","None set µg/m3",null,8.0499999999999999E-3,7.6E-3]
["Benzo(c)phenanthrene",null,"6-8hrs","None set µg/m3",null,8.0499999999999999E-3,7.6E-3]
["Benzo(ghi)perylene",null,"6-8hrs","None set µg/m3",null,8.0499999999999999E-3,1.145E-2]
["Benzo(k)fluoranthene",null,"6-8hrs","None set µg/m3",null,8.0499999999999999E-3,7.6E-3]
["Cholanthrene",null,"6-8hrs","None set µg/m3",null,8.0499999999999999E-3,7.6E-3]
["Chrysene",null,"6-8hrs","None set µg/m3",null,1.61E-2,7.6E-3]
["Cyclopenta(cd)pyrene",null,"6-8hrs","None set µg/m3",null,7.2350000000000012E-2,1.8749999999999999E-2]
["Dibenzo(ai)pyrene",null,"6-8hrs","None set µg/m3",null,8.0499999999999999E-3,7.6E-3]
["Dibenzo(ah)anthracene",null,"6-8hrs","None set µg/m3",null,8.0499999999999999E-3,7.6E-3]
["Fluoranthene",null,"6-8hrs","None set µg/m3",null,0.36549999999999999,0.1739]
["Indeno(123-cd) pyrene",null,"6-8hrs","None set µg/m3",null,8.0499999999999999E-3,7.6E-3]
["Naphthalene",null,"6-8hrs","None set µg/m3",null,11.262449999999999,0.95340000000000003]
["Comments :"]

{"sheet":"Air (CEMS)","index":13,"n_rows":28,"n_cols":16,"rows_kept":28,"cut":false,"hidden":false,"merged":[[26,0,26,12],[28,0,29,12],[13,0,14,0],[5,0,6,12],[7,0,8,12],[10,0,10,12],[11,0,12,0],[11,2,12,2],[11,1,12,1],[11,3,11,4],[11,5,11,6],[11,7,11,8],[11,9,11,10],[11,11,11,12]]}
[{"$f":"+'Cover Page'!$B$29","v":"Annual Performance Report 2021"},null,null,null,null,null,null,null,{"$f":"+'Cover Page'!$B$33","v":"Wolverhampton Energy from Waste Facility"}]
[]
["Emissions to Air (continously monitored)"]
[null,null,null,null,null,null,null,null,null,null,null,null,null,null,null,"Notes:"]
["Summary of monitoring undertaken, standards used and compliance",null,null,null,null,null,null,null,null,null,null,null,null,null,null,"Template may require adjustment for any bespoke monitoring requirements of permit"]
["The substances below are continuously monitored by the plant.  Average and maximum emissions are recorded below.",null,null,null,null,null,null,null,null,null,null,null,null,null,null,"Report to 2 decimal places, i.e. xx.xx%"]
[]
[]
[]
[]
["Results of emissions to air that are continuously monitored (maximum and average values for each line)"]
["Substance","Reference Period","Emission Limit Value","A1",null,"A2",null,"A3",null,"A4",null,"A5"]
[null,null,null,"Max.","Avg.","Max.","Avg.","Max.","Avg.","Max.","Avg.","Max.","Avg."]
["Oxides of nitrogen","Daily mean","200 mg/m3 ",{"$f":"NOx!O19","v":192},{"$f":"NOx!N19","v":182.75},{"$f":"NOx!O34","v":193},{"$f":"NOx!N34","v":182.66666666666666}]
[null,"½ hourly mean","400 mg/m3 ",{"$f":"NOx!M19","v":371},{"$f":"NOx!L19","v":182.75},{"$f":"NOx!M34","v":382},{"$f":"NOx!L34","v":182.66666666666666}]
["Particulates","Daily mean","10 mg/m3",{"$f":"Particulates!O19","v":2},{"$f":"Particulates!N19","v":8.3333333333333329E-2},{"$f":"Particulates!O34","v":7},{"$f":"Particulates!N34","v":0}]
[null,"½ hourly mean","30 mg/m3 ",{"$f":"Particulates!M19","v":6},{"$f":"Particulates!L19","v":8.3333333333333329E-2},{"$f":"Particulates!M34","v":27},{"$f":"Particulates!L34","v":0}]
["Total Organic Carbon ","Daily mean","10 mg/m3 ",{"$f":"TOC!O19","v":2},{"$f":"TOC!N19","v":0},{"$f":"TOC!O34","v":2},{"$f":"TOC!N34","v":0.16666666666666666}]
[null,"½ hourly mean","20 mg/m3 ",{"$f":"TOC!M19","v":29},{"$f":"TOC!L19","v":0},{"$f":"TOC!M34","v":18},{"$f":"TOC!L34","v":0.16666666666666666}]
["Hydrogen chloride ","Daily mean","10 mg/m3 ",{"$f":"HCl!O19","v":10},{"$f":"HCl!N19","v":6.583333333333333},{"$f":"HCl!O34","v":13},{"$f":"HCl!N34","v":7}]
[null,"½ hourly mean","60 mg/m3 ",{"$f":"HCl!M19","v":104},{"$f":"HCl!L19","v":6.583333333333333},{"$f":"HCl!M34","v":90},{"$f":"HCl!L34","v":7}]
["Sulphur dioxide","Daily mean","50 mg/m3 ",{"$f":"'SO2'!O19","v":40},{"$f":"'SO2'!N19","v":18.833333333333332},{"$f":"'SO2'!O34","v":39},{"$f":"'SO2'!N34","v":22.75}]
[null,"½ hourly mean","200 mg/m3 ",{"$f":"'SO2'!M19","v":161},{"$f":"'SO2'!L19","v":18.833333333333332},{"$f":"'SO2'!M34","v":124},{"$f":"'SO2'!L34","v":22.75}]
["Carbon monoxide ","Daily mean","50 mg/m3 ",{"$f":"'CO 95% 10 min'!Q19","v":46},{"$f":"'CO 95% 10 min'!P19","v":10},{"$f":"'CO 95% 10 min'!Q34","v":48},{"$f":"'CO 95% 10 min'!P34","v":9.3333333333333339}]
[null,"95%ile 10-min avg *","150 mg/m3 *",{"$f":"'CO 95% 10 min'!O19","v":266},{"$f":"'CO 95% 10 min'!N19","v":10},{"$f":"'CO 95% 10 min'!O34","v":140},{"$f":"'CO 95% 10 min'!N34","v":9.3333333333333339}]
[" Ammonia","Daily mean","No limit set",{"$f":"'NH3'!O19","v":17},{"$f":"'NH3'!N19","v":0.66666666666666663},{"$f":"'NH3'!O34","v":16},{"$f":"'NH3'!N34","v":2}]
["* = delete or amend as appropriate"]
["Comments :"]

{"sheet":"HCl","index":14,"n_rows":79,"n_cols":17,"rows_kept":79,"cut":false,"hidden":false,"merged":[[12,16,15,18],[51,9,63,9],[66,9,78,9],[4,9,4,14],[4,1,4,3],[4,4,4,6],[48,0,51,6],[47,0,47,6],[6,9,18,9],[21,9,33,9],[36,9,48,9],[3,16,7,18],[9,16,11,18]]}
[{"$f":"+'Cover Page'!$B$29","v":"Annual Performance Report 2021"},null,null,null,{"$f":"+'Cover Page'!$B$33","v":"Wolverhampton Energy from Waste Facility"}]
[]
["Monitoring of Hydrogen Chloride emissions",null,null,"Whole Installation",null,null,"See  Notes in Cell Q3",null,null,{"$f":"+A3","v":"Monitoring of Hydrogen Chloride emissions"},null,null,null,"Per Combustion Line",null,null,"Notes:"]
[null,null,null,null,null,null,null,null,null,null,null,null,null,null,null,null,"User to add logic to complete Whole installation, Table A5:G18. From the data in Per Combustion Line, Table J6:O79, subject to No. of lines installed"]
["mg/Nm3","1/2 Hourly Reference Periods",null,null,"Daily Reference Periods"]
[{"$f":"+'Cover Page'!C39","v":2021},"1/2 hourly HCl ELV","Monthly 1/2 hourly mean","Highest 1/2 hourly maximum","Daily HCl ELV","Monthly daily mean","Highest daily maximum",null,null,{"$f":"+A6","v":2021},"mg/Nm3","Monthly 1/2 hourly mean","Monthly 1/2 hourly maximum","Monthly daily mean","Monthly daily maximum"]
["Jan",60,{"$f":"AVERAGE(L7,L22)","v":5.5},{"$f":"MAX(M7,M22)","v":34},10,{"$f":"AVERAGE(N7,N22)","v":5.5},{"$f":"MAX(O7,O22)","v":8},null,null,"A1","Jan",6,34,6,8]
["Feb",60,{"$f":"AVERAGE(L8,L23)","v":6.5},{"$f":"MAX(M8,M23)","v":20},10,{"$f":"AVERAGE(N8,N23)","v":6.5},{"$f":"MAX(O8,O23)","v":8},null,null,null,"Feb",6,20,6,8]
["Mar",60,7,104,10,7,8,null,null,null,"Mar",7,104,7,8,null,"Whole Installation table A5:G18:"]
["Apr",60,7,39,10,7,9,null,null,null,"Apr",7,39,7,8,null,"Mean: for 1/2 hourly and daily periods calculate mean of values across all operational combustion lines for the month"]
["May",60,6,25,10,6,7,null,null,null,"May",6,19,6,7]
["Jun",60,7,26,10,7,8,null,null,null,"Jun",7,22,7,8]
["Jul",60,6,20,10,6,8,null,null,null,"Jul",6,20,6,7,null,"Maximum: for 1/2 hourly and daily periods use the highest value across all operational combustion lines for the month"]
["Aug",60,7.5,90,10,7.5,10,null,null,null,"Aug",7,27,7,9]
["Sep",60,8,35,10,8,10,null,null,null,"Sep",8,35,8,10]
["Oct",60,7.5,59,10,7.5,13,null,null,null,"Oct",7,27,7,9]
["Nov",60,7,45,10,7,9,null,null,null,"Nov",6,45,6,8]
["Dec",60,6.5,83,10,6.5,9,null,null,null,"Dec",6,83,6,8]
[null,null,null,null,null,null,null,null,null,null,"Annual",{"$f":"AVERAGE(L7:L18)","v":6.583333333333333},{"$f":"MAX(M7:M18)","v":104},{"$f":"AVERAGE(N7:N18)","v":6.583333333333333},{"$f":"MAX(O7:O18)","v":10}]
[]
[null,null,null,null,null,null,null,null,null,{"$f":"+A6","v":2021},"mg/Nm3","Monthly 1/2 hourly mean","Monthly 1/2 hourly maximum","Monthly daily mean","Monthly daily maximum"]
[null,null,null,null,null,null,null,null,null,"A2","Jan",5,23,5,8]
[null,null,null,null,null,null,null,null,null,null,"Feb",7,19,7,8]
[null,null,null,null,null,null,null,null,null,null,"Mar",7,21,7,8]
[null,null,null,null,null,null,null,null,null,null,"Apr",7,37,7,9]
[null,null,null,null,null,null,null,null,null,null,"May",6,25,6,7]
[null,null,null,null,null,null,null,null,null,null,"Jun",7,26,7,8]
[null,null,null,null,null,null,null,null,null,null,"Jul",6,18,6,8]
[null,null,null,null,null,null,null,null,null,null,"Aug",8,90,8,10]
[null,null,null,null,null,null,null,null,null,null,"Sep",8,27,8,9]
[null,null,null,null,null,null,null,null,null,null,"Oct",8,59,8,13]
[null,null,null,null,null,null,null,null,null,null,"Nov",8,32,8,9]
[null,null,null,null,null,null,null,null,null,null,"Dec",7,33,7,9]
[null,null,null,null,null,null,null,null,null,null,"Annual",{"$f":"AVERAGE(L22:L33)","v":7},{"$f":"MAX(M22:M33)","v":90},{"$f":"AVERAGE(N22:N33)","v":7},{"$f":"MAX(O22:O33)","v":13}]
[]
[null,null,null,null,null,null,null,null,null,{"$f":"+A6","v":2021},"mg/Nm3","Monthly 1/2 hourly mean","Monthly 1/2 hourly maximum","Monthly daily mean","Monthly daily maximum"]
[null,null,null,null,null,null,null,null,null,"A3","Jan"]
[null,null,null,null,null,null,null,null,null,null,"Feb"]
[null,null,null,null,null,null,null,null,null,null,"Mar"]
[null,null,null,null,null,null,null,null,null,null,"Apr"]
[null,null,null,null,null,null,null,null,null,null,"May"]
[null,null,null,null,null,null,null,null,null,null,"Jun"]
[null,null,null,null,null,null,null,null,null,null,"Jul"]
[null,null,null,null,null,null,null,null,null,null,"Aug"]
[null,null,null,null,null,null,null,null,null,null,"Sep"]
[null,null,null,null,null,null,null,null,null,null,"Oct"]
[null,null,null,null,null,null,null,null,null,null,"Nov"]
["Comments :",null,null,null,null,null,null,null,null,null,"Dec"]
[null,null,null,null,null,null,null,null,null,null,"Annual",{"$f":"AVERAGE(L37:L48)","v":{"$error":"#DIV/0!"}},{"$f":"MAX(M37:M48)","v":0},{"$f":"AVERAGE(N37:N48)","v":{"$error":"#DIV/0!"}},{"$f":"MAX(O37:O48)","v":0}]
[]
[null,null,null,null,null,null,null,null,null,{"$f":"+A6","v":2021},"mg/Nm3","Monthly 1/2 hourly mean","Monthly 1/2 hourly maximum","Monthly daily mean","Monthly daily maximum"]
[null,null,null,null,null,null,null,null,null,"A4","Jan"]
[null,null,null,null,null,null,null,null,null,null,"Feb"]
[null,null,null,null,null,null,null,null,null,null,"Mar"]
[null,null,null,null,null,null,null,null,null,null,"Apr"]
[null,null,null,null,null,null,null,null,null,null,"May"]
[null,null,null,null,null,null,null,null,null,null,"Jun"]
[null,null,null,null,null,null,null,null,null,null,"Jul"]
[null,null,null,null,null,null,null,null,null,null,"Aug"]
[null,null,null,null,null,null,null,null,null,null,"Sep"]
[null,null,null,null,null,null,null,null,null,null,"Oct"]
[null,null,null,null,null,null,null,null,null,null,"Nov"]
[null,null,null,null,null,null,null,null,null,null,"Dec"]
[null,null,null,null,null,null,null,null,null,null,"Annual",{"$f":"AVERAGE(L52:L63)","v":{"$error":"#DIV/0!"}},{"$f":"MAX(M52:M63)","v":0},{"$f":"AVERAGE(N52:N63)","v":{"$error":"#DIV/0!"}},{"$f":"MAX(O52:O63)","v":0}]
[]
[null,null,null,null,null,null,null,null,null,{"$f":"+A6","v":2021},"mg/Nm3","Monthly 1/2 hourly mean","Monthly 1/2 hourly maximum","Monthly daily mean","Monthly daily maximum"]
[null,null,null,null,null,null,null,null,null,"A5","Jan"]
[null,null,null,null,null,null,null,null,null,null,"Feb"]
[null,null,null,null,null,null,null,null,null,null,"Mar"]
[null,null,null,null,null,null,null,null,null,null,"Apr"]
[null,null,null,null,null,null,null,null,null,null,"May"]
[null,null,null,null,null,null,null,null,null,null,"Jun"]
[null,null,null,null,null,null,null,null,null,null,"Jul"]
[null,null,null,null,null,null,null,null,null,null,"Aug"]
[null,null,null,null,null,null,null,null,null,null,"Sep"]
[null,null,null,null,null,null,null,null,null,null,"Oct"]
[null,null,null,null,null,null,null,null,null,null,"Nov"]
[null,null,null,null,null,null,null,null,null,null,"Dec"]
[null,null,null,null,null,null,null,null,null,null,"Annual",{"$f":"AVERAGE(L67:L78)","v":{"$error":"#DIV/0!"}},{"$f":"MAX(M67:M78)","v":0},{"$f":"AVERAGE(N67:N78)","v":{"$error":"#DIV/0!"}},{"$f":"MAX(O67:O78)","v":0}]

{"sheet":"SO2","index":15,"n_rows":79,"n_cols":17,"rows_kept":79,"cut":false,"hidden":false,"merged":[[3,16,7,18],[9,16,11,18],[12,16,15,18],[66,9,78,9],[4,1,4,3],[4,4,4,6],[4,9,4,14],[6,9,18,9],[21,9,33,9],[36,9,48,9],[47,0,47,6],[48,0,51,6],[51,9,63,9]]}
[{"$f":"+'Cover Page'!$B$29","v":"Annual Performance Report 2021"},null,null,null,{"$f":"+'Cover Page'!$B$33","v":"Wolverhampton Energy from Waste Facility"}]
[]
["Monitoring of Sulphur dioxide emissions",null,null,"Whole Installation",null,null,"See  Notes in Cell Q3",null,null,{"$f":"+A3","v":"Monitoring of Sulphur dioxide emissions"},null,null,null,"Per Combustion Line",null,null,"Notes:"]
[null,null,null,null,null,null,null,null,null,null,null,null,null,null,null,null,"User to add logic to complete Whole installation, Table A5:G18. From the data in Per Combustion Line, Table J6:O79, subject to No. of lines installed"]
["mg/Nm3","1/2 Hourly Reference Periods",null,null,"Daily Reference Periods"]
[{"$f":"+'Cover Page'!C39","v":2021},"1/2 hourly SO2 ELV","Monthly 1/2 hourly mean","Highest 1/2 hourly maximum","Daily SO2 ELV","Monthly daily mean","Highest daily maximum",null,null,{"$f":"+A6","v":2021},"mg/Nm3","Monthly 1/2 hourly mean","Monthly 1/2 hourly maximum","Monthly daily mean","Monthly daily maximum"]
["Jan",200,{"$f":"AVERAGE(L7,L22)","v":20},{"$f":"MAX(M7,M22)","v":98},50,{"$f":"AVERAGE(N7,N22)","v":20},{"$f":"MAX(O7,O22)","v":29},null,null,"A1","Jan",21,89,21,29]
["Feb",200,{"$f":"AVERAGE(L8,L23)","v":20},{"$f":"MAX(M8,M23)","v":76},50,{"$f":"AVERAGE(N8,N23)","v":20},{"$f":"MAX(O8,O23)","v":32},null,null,null,"Feb",18,71,18,24]
["Mar",200,21,70,50,21,27,null,null,null,"Mar",20,70,20,27,null,"Whole Installation table A5:G18:"]
["Apr",200,21,112,50,21,32,null,null,null,"Apr",18,101,18,28,null,"Mean: for 1/2 hourly and daily periods calculate mean of values across all operational combustion lines for the month"]
["May",200,21.5,87,50,21.5,32,null,null,null,"May",18,87,18,29]
["Jun",200,22,123,50,22,33,null,null,null,"Jun",18,88,18,24]
["Jul",200,19.5,76,50,19.5,29,null,null,null,"Jul",16,57,16,26,null,"Maximum: for 1/2 hourly and daily periods use the highest value across all operational combustion lines for the month"]
["Aug",200,29,161,50,29,40,null,null,null,"Aug",28,161,28,40]
["Sep",200,21,127,50,21,28,null,null,null,"Sep",19,127,19,24]
["Oct",200,20,124,50,20,36,null,null,null,"Oct",18,59,18,26]
["Nov",200,18,58,50,18,24,null,null,null,"Nov",17,58,17,24]
["Dec",200,16.5,95,50,16.5,29,null,null,null,"Dec",15,65,15,25]
[null,null,null,null,null,null,null,null,null,null,"Annual",{"$f":"AVERAGE(L7:L18)","v":18.833333333333332},{"$f":"MAX(M7:M18)","v":161},{"$f":"AVERAGE(N7:N18)","v":18.833333333333332},{"$f":"MAX(O7:O18)","v":40}]
[]
[null,null,null,null,null,null,null,null,null,{"$f":"+A6","v":2021},"mg/Nm3","Monthly 1/2 hourly mean","Monthly 1/2 hourly maximum","Monthly daily mean","Monthly daily maximum"]
[null,null,null,null,null,null,null,null,null,"A2","Jan",19,98,19,29]
[null,null,null,null,null,null,null,null,null,null,"Feb",22,76,22,32]
[null,null,null,null,null,null,null,null,null,null,"Mar",22,65,22,27]
[null,null,null,null,null,null,null,null,null,null,"Apr",24,112,24,32]
[null,null,null,null,null,null,null,null,null,null,"May",25,77,25,32]
[null,null,null,null,null,null,null,null,null,null,"Jun",26,123,26,33]
[null,null,null,null,null,null,null,null,null,null,"Jul",23,76,23,29]
[null,null,null,null,null,null,null,null,null,null,"Aug",30,87,30,39]
[null,null,null,null,null,null,null,null,null,null,"Sep",23,90,23,28]
[null,null,null,null,null,null,null,null,null,null,"Oct",22,124,22,36]
[null,null,null,null,null,null,null,null,null,null,"Nov",19,48,19,24]
[null,null,null,null,null,null,null,null,null,null,"Dec",18,95,18,29]
[null,null,null,null,null,null,null,null,null,null,"Annual",{"$f":"AVERAGE(L22:L33)","v":22.75},{"$f":"MAX(M22:M33)","v":124},{"$f":"AVERAGE(N22:N33)","v":22.75},{"$f":"MAX(O22:O33)","v":39}]
[]
[null,null,null,null,null,null,null,null,null,{"$f":"+A6","v":2021},"mg/Nm3","Monthly 1/2 hourly mean","Monthly 1/2 hourly maximum","Monthly daily mean","Monthly daily maximum"]
[null,null,null,null,null,null,null,null,null,"A3","Jan"]
[null,null,null,null,null,null,null,null,null,null,"Feb"]
[null,null,null,null,null,null,null,null,null,null,"Mar"]
[null,null,null,null,null,null,null,null,null,null,"Apr"]
[null,null,null,null,null,null,null,null,null,null,"May"]
[null,null,null,null,null,null,null,null,null,null,"Jun"]
[null,null,null,null,null,null,null,null,null,null,"Jul"]
[null,null,null,null,null,null,null,null,null,null,"Aug"]
[null,null,null,null,null,null,null,null,null,null,"Sep"]
[null,null,null,null,null,null,null,null,null,null,"Oct"]
[null,null,null,null,null,null,null,null,null,null,"Nov"]
["Comments :",null,null,null,null,null,null,null,null,null,"Dec"]
[null,null,null,null,null,null,null,null,null,null,"Annual",{"$f":"AVERAGE(L37:L48)","v":{"$error":"#DIV/0!"}},{"$f":"MAX(M37:M48)","v":0},{"$f":"AVERAGE(N37:N48)","v":{"$error":"#DIV/0!"}},{"$f":"MAX(O37:O48)","v":0}]
[]
[null,null,null,null,null,null,null,null,null,{"$f":"+A6","v":2021},"mg/Nm3","Monthly 1/2 hourly mean","Monthly 1/2 hourly maximum","Monthly daily mean","Monthly daily maximum"]
[null,null,null,null,null,null,null,null,null,"A4","Jan"]
[null,null,null,null,null,null,null,null,null,null,"Feb"]
[null,null,null,null,null,null,null,null,null,null,"Mar"]
[null,null,null,null,null,null,null,null,null,null,"Apr"]
[null,null,null,null,null,null,null,null,null,null,"May"]
[null,null,null,null,null,null,null,null,null,null,"Jun"]
[null,null,null,null,null,null,null,null,null,null,"Jul"]
[null,null,null,null,null,null,null,null,null,null,"Aug"]
[null,null,null,null,null,null,null,null,null,null,"Sep"]
[null,null,null,null,null,null,null,null,null,null,"Oct"]
[null,null,null,null,null,null,null,null,null,null,"Nov"]
[null,null,null,null,null,null,null,null,null,null,"Dec"]
[null,null,null,null,null,null,null,null,null,null,"Annual",{"$f":"AVERAGE(L52:L63)","v":{"$error":"#DIV/0!"}},{"$f":"MAX(M52:M63)","v":0},{"$f":"AVERAGE(N52:N63)","v":{"$error":"#DIV/0!"}},{"$f":"MAX(O52:O63)","v":0}]
[]
[null,null,null,null,null,null,null,null,null,{"$f":"+A6","v":2021},"mg/Nm3","Monthly 1/2 hourly mean","Monthly 1/2 hourly maximum","Monthly daily mean","Monthly daily maximum"]
[null,null,null,null,null,null,null,null,null,"A5","Jan"]
[null,null,null,null,null,null,null,null,null,null,"Feb"]
[null,null,null,null,null,null,null,null,null,null,"Mar"]
[null,null,null,null,null,null,null,null,null,null,"Apr"]
[null,null,null,null,null,null,null,null,null,null,"May"]
[null,null,null,null,null,null,null,null,null,null,"Jun"]
[null,null,null,null,null,null,null,null,null,null,"Jul"]
[null,null,null,null,null,null,null,null,null,null,"Aug"]
[null,null,null,null,null,null,null,null,null,null,"Sep"]
[null,null,null,null,null,null,null,null,null,null,"Oct"]
[null,null,null,null,null,null,null,null,null,null,"Nov"]
[null,null,null,null,null,null,null,null,null,null,"Dec"]
[null,null,null,null,null,null,null,null,null,null,"Annual",{"$f":"AVERAGE(L67:L78)","v":{"$error":"#DIV/0!"}},{"$f":"MAX(M67:M78)","v":0},{"$f":"AVERAGE(N67:N78)","v":{"$error":"#DIV/0!"}},{"$f":"MAX(O67:O78)","v":0}]

{"sheet":"NOx","index":16,"n_rows":79,"n_cols":17,"rows_kept":79,"cut":false,"hidden":false,"merged":[[3,16,7,18],[9,16,11,18],[12,16,15,18],[66,9,78,9],[4,1,4,3],[4,4,4,6],[4,9,4,14],[6,9,18,9],[21,9,33,9],[36,9,48,9],[47,0,47,6],[48,0,51,6],[51,9,63,9]]}
[{"$f":"+'Cover Page'!$B$29","v":"Annual Performance Report 2021"},null,null,null,{"$f":"+'Cover Page'!$B$33","v":"Wolverhampton Energy from Waste Facility"}]
[]
["Monitoring of Oxides of Nitrogen emissions",null,null,"Whole Installation",null,null,"See  Notes in Cell Q3",null,null,{"$f":"+A3","v":"Monitoring of Oxides of Nitrogen emissions"},null,null,null,"Per Combustion Line",null,null,"Notes:"]
[null,null,null,null,null,null,null,null,null,null,null,null,null,null,null,null,"User to add logic to complete Whole installation, Table A5:G18. From the data in Per Combustion Line, Table J6:O79, subject to No. of lines installed"]
["mg/Nm3","1/2 Hourly Reference Periods",null,null,"Daily Reference Periods"]
[{"$f":"+'Cover Page'!C39","v":2021},"1/2 hourly NOx ELV","Monthly 1/2 hourly mean","Highest 1/2 hourly maximum","Daily NOx ELV","Monthly daily mean","Highest daily maximum",null,null,{"$f":"+A6","v":2021},"mg/Nm3","Monthly 1/2 hourly mean","Monthly 1/2 hourly maximum","Monthly daily mean","Monthly daily maximum"]
["Jan",400,{"$f":"AVERAGE(L7,L22)","v":183.5},{"$f":"MAX(M7,M22)","v":382},200,{"$f":"AVERAGE(N7,N22)","v":183.5},{"$f":"MAX(O7,O22)","v":191},null,null,"A1","Jan",183,371,183,188]
["Feb",400,{"$f":"AVERAGE(L8,L23)","v":186},{"$f":"MAX(M8,M23)","v":344},200,{"$f":"AVERAGE(N8,N23)","v":186},{"$f":"MAX(O8,O23)","v":192},null,null,null,"Feb",186,334,186,192]
["Mar",400,185.5,350,200,185.5,188,null,null,null,"Mar",185,284,185,187,null,"Whole Installation table A5:G18:"]
["Apr",400,185.5,322,200,185.5,193,null,null,null,"Apr",185,258,185,187,null,"Mean: for 1/2 hourly and daily periods calculate mean of values across all operational combustion lines for the month"]
["May",400,185.5,276,200,185.5,190,null,null,null,"May",185,272,185,186]
["Jun",400,185.5,327,200,185.5,192,null,null,null,"Jun",185,327,185,187]
["Jul",400,177,260,200,177,190,null,null,null,"Jul",169,246,169,186,null,"Maximum: for 1/2 hourly and daily periods use the highest value across all operational combustion lines for the month"]
["Aug",400,183,348,200,183,188,null,null,null,"Aug",185,307,185,188]
["Sep",400,179.5,245,200,179.5,187,null,null,null,"Sep",185,233,185,187]
["Oct",400,174.5,267,200,174.5,189,null,null,null,"Oct",178,245,178,187]
["Nov",400,181.5,263,200,181.5,188,null,null,null,"Nov",182,263,182,188]
["Dec",400,185.5,373,200,185.5,189,null,null,null,"Dec",185,288,185,189]
[null,null,null,null,null,null,null,null,null,null,"Annual",{"$f":"AVERAGE(L7:L18)","v":182.75},{"$f":"MAX(M7:M18)","v":371},{"$f":"AVERAGE(N7:N18)","v":182.75},{"$f":"MAX(O7:O18)","v":192}]
[]
[null,null,null,null,null,null,null,null,null,{"$f":"+A6","v":2021},"mg/Nm3","Monthly 1/2 hourly mean","Monthly 1/2 hourly maximum","Monthly daily mean","Monthly daily maximum"]
[null,null,null,null,null,null,null,null,null,"A2","Jan",184,382,184,191]
[null,null,null,null,null,null,null,null,null,null,"Feb",186,344,186,191]
[null,null,null,null,null,null,null,null,null,null,"Mar",186,350,186,188]
[null,null,null,null,null,null,null,null,null,null,"Apr",186,322,186,193]
[null,null,null,null,null,null,null,null,null,null,"May",186,276,186,190]
[null,null,null,null,null,null,null,null,null,null,"Jun",186,271,186,192]
[null,null,null,null,null,null,null,null,null,null,"Jul",185,260,185,190]
[null,null,null,null,null,null,null,null,null,null,"Aug",181,348,181,188]
[null,null,null,null,null,null,null,null,null,null,"Sep",174,245,174,187]
[null,null,null,null,null,null,null,null,null,null,"Oct",171,267,171,189]
[null,null,null,null,null,null,null,null,null,null,"Nov",181,263,181,187]
[null,null,null,null,null,null,null,null,null,null,"Dec",186,373,186,189]
[null,null,null,null,null,null,null,null,null,null,"Annual",{"$f":"AVERAGE(L22:L33)","v":182.66666666666666},{"$f":"MAX(M22:M33)","v":382},{"$f":"AVERAGE(N22:N33)","v":182.66666666666666},{"$f":"MAX(O22:O33)","v":193}]
[]
[null,null,null,null,null,null,null,null,null,{"$f":"+A6","v":2021},"mg/Nm3","Monthly 1/2 hourly mean","Monthly 1/2 hourly maximum","Monthly daily mean","Monthly daily maximum"]
[null,null,null,null,null,null,null,null,null,"A3","Jan"]
[null,null,null,null,null,null,null,null,null,null,"Feb"]
[null,null,null,null,null,null,null,null,null,null,"Mar"]
[null,null,null,null,null,null,null,null,null,null,"Apr"]
[null,null,null,null,null,null,null,null,null,null,"May"]
[null,null,null,null,null,null,null,null,null,null,"Jun"]
[null,null,null,null,null,null,null,null,null,null,"Jul"]
[null,null,null,null,null,null,null,null,null,null,"Aug"]
[null,null,null,null,null,null,null,null,null,null,"Sep"]
[null,null,null,null,null,null,null,null,null,null,"Oct"]
[null,null,null,null,null,null,null,null,null,null,"Nov"]
["Comments :",null,null,null,null,null,null,null,null,null,"Dec"]
[null,null,null,null,null,null,null,null,null,null,"Annual",{"$f":"AVERAGE(L37:L48)","v":{"$error":"#DIV/0!"}},{"$f":"MAX(M37:M48)","v":0},{"$f":"AVERAGE(N37:N48)","v":{"$error":"#DIV/0!"}},{"$f":"MAX(O37:O48)","v":0}]
[]
[null,null,null,null,null,null,null,null,null,{"$f":"+A6","v":2021},"mg/Nm3","Monthly 1/2 hourly mean","Monthly 1/2 hourly maximum","Monthly daily mean","Monthly daily maximum"]
[null,null,null,null,null,null,null,null,null,"A4","Jan"]
[null,null,null,null,null,null,null,null,null,null,"Feb"]
[null,null,null,null,null,null,null,null,null,null,"Mar"]
[null,null,null,null,null,null,null,null,null,null,"Apr"]
[null,null,null,null,null,null,null,null,null,null,"May"]
[null,null,null,null,null,null,null,null,null,null,"Jun"]
[null,null,null,null,null,null,null,null,null,null,"Jul"]
[null,null,null,null,null,null,null,null,null,null,"Aug"]
[null,null,null,null,null,null,null,null,null,null,"Sep"]
[null,null,null,null,null,null,null,null,null,null,"Oct"]
[null,null,null,null,null,null,null,null,null,null,"Nov"]
[null,null,null,null,null,null,null,null,null,null,"Dec"]
[null,null,null,null,null,null,null,null,null,null,"Annual",{"$f":"AVERAGE(L52:L63)","v":{"$error":"#DIV/0!"}},{"$f":"MAX(M52:M63)","v":0},{"$f":"AVERAGE(N52:N63)","v":{"$error":"#DIV/0!"}},{"$f":"MAX(O52:O63)","v":0}]
[]
[null,null,null,null,null,null,null,null,null,{"$f":"+A6","v":2021},"mg/Nm3","Monthly 1/2 hourly mean","Monthly 1/2 hourly maximum","Monthly daily mean","Monthly daily maximum"]
[null,null,null,null,null,null,null,null,null,"A5","Jan"]
[null,null,null,null,null,null,null,null,null,null,"Feb"]
[null,null,null,null,null,null,null,null,null,null,"Mar"]
[null,null,null,null,null,null,null,null,null,null,"Apr"]
[null,null,null,null,null,null,null,null,null,null,"May"]
[null,null,null,null,null,null,null,null,null,null,"Jun"]
[null,null,null,null,null,null,null,null,null,null,"Jul"]
[null,null,null,null,null,null,null,null,null,null,"Aug"]
[null,null,null,null,null,null,null,null,null,null,"Sep"]
[null,null,null,null,null,null,null,null,null,null,"Oct"]
[null,null,null,null,null,null,null,null,null,null,"Nov"]
[null,null,null,null,null,null,null,null,null,null,"Dec"]
[null,null,null,null,null,null,null,null,null,null,"Annual",{"$f":"AVERAGE(L67:L78)","v":{"$error":"#DIV/0!"}},{"$f":"MAX(M67:M78)","v":0},{"$f":"AVERAGE(N67:N78)","v":{"$error":"#DIV/0!"}},{"$f":"MAX(O67:O78)","v":0}]

{"sheet":"TOC","index":17,"n_rows":79,"n_cols":17,"rows_kept":79,"cut":false,"hidden":false,"merged":[[3,16,7,18],[9,16,11,18],[12,16,15,18],[66,9,78,9],[4,1,4,3],[4,4,4,6],[4,9,4,14],[6,9,18,9],[21,9,33,9],[36,9,48,9],[47,0,47,6],[48,0,51,6],[51,9,63,9]]}
[{"$f":"+'Cover Page'!$B$29","v":"Annual Performance Report 2021"},null,null,null,{"$f":"+'Cover Page'!$B$33","v":"Wolverhampton Energy from Waste Facility"}]
[]
["Monitoring of Total organic carbon emissions",null,null,"Whole Installation",null,null,"See  Notes in Cell Q3",null,null,{"$f":"+A3","v":"Monitoring of Total organic carbon emissions"},null,null,null,"Per Combustion Line",null,null,"Notes:"]
[null,null,null,null,null,null,null,null,null,null,null,null,null,null,null,null,"User to add logic to complete Whole installation, Table A5:G18. From the data in Per Combustion Line, Table J6:O79, subject to No. of lines installed"]
["mg/Nm3","1/2 Hourly Reference Periods",null,null,"Daily Reference Periods"]
[{"$f":"+'Cover Page'!C39","v":2021},"1/2 hourly TOC ELV","Monthly 1/2 hourly mean","Highest 1/2 hourly maximum","Daily TOC ELV","Monthly daily mean","Highest daily maximum",null,null,{"$f":"+A6","v":2021},"mg/Nm3","Monthly 1/2 hourly mean","Monthly 1/2 hourly maximum","Monthly daily mean","Monthly daily maximum"]
["Jan",20,{"$f":"AVERAGE(L7,L22)","v":0},{"$f":"MAX(M7,M22)","v":8},10,{"$f":"AVERAGE(N7,N22)","v":0},{"$f":"MAX(O7,O22)","v":0},null,null,"A1","Jan",0,2,0,0]
["Feb",20,{"$f":"AVERAGE(L8,L23)","v":0},{"$f":"MAX(M8,M23)","v":27},10,{"$f":"AVERAGE(N8,N23)","v":0},{"$f":"MAX(O8,O23)","v":2},null,null,null,"Feb",0,27,0,2]
["Mar",20,0,4,10,0,1,null,null,null,"Mar",0,4,0,1,null,"Whole Installation table A5:G18:"]
["Apr",20,0,8,10,0,2,null,null,null,"Apr",0,3,0,1,null,"Mean: for 1/2 hourly and daily periods calculate mean of values across all operational combustion lines for the month"]
["May",20,0,8,10,0,1,null,null,null,"May",0,1,0,1]
["Jun",20,0,9,10,0,2,null,null,null,"Jun",0,9,0,1]
["Jul",20,0.5,18,10,0.5,2,null,null,null,"Jul",0,2,0,0,null,"Maximum: for 1/2 hourly and daily periods use the highest value across all operational combustion lines for the month"]
["Aug",20,0,29,10,0,1,null,null,null,"Aug",0,29,0,0]
["Sep",20,0,17,10,0,1,null,null,null,"Sep",0,2,0,1]
["Oct",20,0,7,10,0,1,null,null,null,"Oct",0,7,0,1]
["Nov",20,0,11,10,0,1,null,null,null,"Nov",0,1,0,1]
["Dec",20,0.5,7,10,0.5,1,null,null,null,"Dec",0,1,0,1]
[null,null,null,null,null,null,null,null,null,null,"Annual",{"$f":"AVERAGE(L7:L18)","v":0},{"$f":"MAX(M7:M18)","v":29},{"$f":"AVERAGE(N7:N18)","v":0},{"$f":"MAX(O7:O18)","v":2}]
[]
[null,null,null,null,null,null,null,null,null,{"$f":"+A6","v":2021},"mg/Nm3","Monthly 1/2 hourly mean","Monthly 1/2 hourly maximum","Monthly daily mean","Monthly daily maximum"]
[null,null,null,null,null,null,null,null,null,"A2","Jan",0,8,0,0]
[null,null,null,null,null,null,null,null,null,null,"Feb",0,7,0,2]
[null,null,null,null,null,null,null,null,null,null,"Mar",0,4,0,1]
[null,null,null,null,null,null,null,null,null,null,"Apr",0,8,0,2]
[null,null,null,null,null,null,null,null,null,null,"May",0,8,0,1]
[null,null,null,null,null,null,null,null,null,null,"Jun",0,6,0,2]
[null,null,null,null,null,null,null,null,null,null,"Jul",1,18,1,2]
[null,null,null,null,null,null,null,null,null,null,"Aug",0,2,0,1]
[null,null,null,null,null,null,null,null,null,null,"Sep",0,17,0,0]
[null,null,null,null,null,null,null,null,null,null,"Oct",0,6,0,1]
[null,null,null,null,null,null,null,null,null,null,"Nov",0,11,0,1]
[null,null,null,null,null,null,null,null,null,null,"Dec",1,7,1,1]
[null,null,null,null,null,null,null,null,null,null,"Annual",{"$f":"AVERAGE(L22:L33)","v":0.16666666666666666},{"$f":"MAX(M22:M33)","v":18},{"$f":"AVERAGE(N22:N33)","v":0.16666666666666666},{"$f":"MAX(O22:O33)","v":2}]
[]
[null,null,null,null,null,null,null,null,null,{"$f":"+A6","v":2021},"mg/Nm3","Monthly 1/2 hourly mean","Monthly 1/2 hourly maximum","Monthly daily mean","Monthly daily maximum"]
[null,null,null,null,null,null,null,null,null,"A3","Jan"]
[null,null,null,null,null,null,null,null,null,null,"Feb"]
[null,null,null,null,null,null,null,null,null,null,"Mar"]
[null,null,null,null,null,null,null,null,null,null,"Apr"]
[null,null,null,null,null,null,null,null,null,null,"May"]
[null,null,null,null,null,null,null,null,null,null,"Jun"]
[null,null,null,null,null,null,null,null,null,null,"Jul"]
[null,null,null,null,null,null,null,null,null,null,"Aug"]
[null,null,null,null,null,null,null,null,null,null,"Sep"]
[null,null,null,null,null,null,null,null,null,null,"Oct"]
[null,null,null,null,null,null,null,null,null,null,"Nov"]
["Comments :",null,null,null,null,null,null,null,null,null,"Dec"]
[null,null,null,null,null,null,null,null,null,null,"Annual",{"$f":"AVERAGE(L37:L48)","v":{"$error":"#DIV/0!"}},{"$f":"MAX(M37:M48)","v":0},{"$f":"AVERAGE(N37:N48)","v":{"$error":"#DIV/0!"}},{"$f":"MAX(O37:O48)","v":0}]
[]
[null,null,null,null,null,null,null,null,null,{"$f":"+A6","v":2021},"mg/Nm3","Monthly 1/2 hourly mean","Monthly 1/2 hourly maximum","Monthly daily mean","Monthly daily maximum"]
[null,null,null,null,null,null,null,null,null,"A4","Jan"]
[null,null,null,null,null,null,null,null,null,null,"Feb"]
[null,null,null,null,null,null,null,null,null,null,"Mar"]
[null,null,null,null,null,null,null,null,null,null,"Apr"]
[null,null,null,null,null,null,null,null,null,null,"May"]
[null,null,null,null,null,null,null,null,null,null,"Jun"]
[null,null,null,null,null,null,null,null,null,null,"Jul"]
[null,null,null,null,null,null,null,null,null,null,"Aug"]
[null,null,null,null,null,null,null,null,null,null,"Sep"]
[null,null,null,null,null,null,null,null,null,null,"Oct"]
[null,null,null,null,null,null,null,null,null,null,"Nov"]
[null,null,null,null,null,null,null,null,null,null,"Dec"]
[null,null,null,null,null,null,null,null,null,null,"Annual",{"$f":"AVERAGE(L52:L63)","v":{"$error":"#DIV/0!"}},{"$f":"MAX(M52:M63)","v":0},{"$f":"AVERAGE(N52:N63)","v":{"$error":"#DIV/0!"}},{"$f":"MAX(O52:O63)","v":0}]
[]
[null,null,null,null,null,null,null,null,null,{"$f":"+A6","v":2021},"mg/Nm3","Monthly 1/2 hourly mean","Monthly 1/2 hourly maximum","Monthly daily mean","Monthly daily maximum"]
[null,null,null,null,null,null,null,null,null,"A5","Jan"]
[null,null,null,null,null,null,null,null,null,null,"Feb"]
[null,null,null,null,null,null,null,null,null,null,"Mar"]
[null,null,null,null,null,null,null,null,null,null,"Apr"]
[null,null,null,null,null,null,null,null,null,null,"May"]
[null,null,null,null,null,null,null,null,null,null,"Jun"]
[null,null,null,null,null,null,null,null,null,null,"Jul"]
[null,null,null,null,null,null,null,null,null,null,"Aug"]
[null,null,null,null,null,null,null,null,null,null,"Sep"]
[null,null,null,null,null,null,null,null,null,null,"Oct"]
[null,null,null,null,null,null,null,null,null,null,"Nov"]
[null,null,null,null,null,null,null,null,null,null,"Dec"]
[null,null,null,null,null,null,null,null,null,null,"Annual",{"$f":"AVERAGE(L67:L78)","v":{"$error":"#DIV/0!"}},{"$f":"MAX(M67:M78)","v":0},{"$f":"AVERAGE(N67:N78)","v":{"$error":"#DIV/0!"}},{"$f":"MAX(O67:O78)","v":0}]

{"sheet":"Particulates","index":18,"n_rows":79,"n_cols":17,"rows_kept":79,"cut":false,"hidden":false,"merged":[[3,16,7,18],[9,16,11,18],[12,16,15,18],[66,9,78,9],[4,1,4,3],[4,4,4,6],[4,9,4,14],[6,9,18,9],[21,9,33,9],[36,9,48,9],[47,0,47,6],[48,0,51,6],[51,9,63,9]]}
[{"$f":"+'Cover Page'!$B$29","v":"Annual Performance Report 2021"},null,null,null,{"$f":"+'Cover Page'!$B$33","v":"Wolverhampton Energy from Waste Facility"}]
[]
["Monitoring of Particulate matter emissions",null,null,"Whole Installation",null,null,"See  Notes in Cell Q3",null,null,{"$f":"+A3","v":"Monitoring of Particulate matter emissions"},null,null,null,"Per Combustion Line",null,null,"Notes:"]
[null,null,null,null,null,null,null,null,null,null,null,null,null,null,null,null,"User to add logic to complete Whole installation, Table A5:G18. From the data in Per Combustion Line, Table J6:O79, subject to No. of lines installed"]
["mg/Nm3","1/2 Hourly Reference Periods",null,null,"Daily Reference Periods"]
[{"$f":"+'Cover Page'!C39","v":2021},"1/2 hourly PM ELV","Monthly 1/2 hourly mean","Highest 1/2 hourly maximum","Daily PM ELV","Monthly daily mean","Highest daily maximum",null,null,{"$f":"+A6","v":2021},"mg/Nm3","Monthly 1/2 hourly mean","Monthly 1/2 hourly maximum","Monthly daily mean","Monthly daily maximum"]
["Jan",30,{"$f":"AVERAGE(L7,L22)","v":0},{"$f":"MAX(M7,M22)","v":1},10,{"$f":"AVERAGE(N7,N22)","v":0},{"$f":"MAX(O7,O22)","v":0},null,null,"A1","Jan",0,1,0,0]
["Feb",30,{"$f":"AVERAGE(L8,L23)","v":0},{"$f":"MAX(M8,M23)","v":0},10,{"$f":"AVERAGE(N8,N23)","v":0},{"$f":"MAX(O8,O23)","v":0},null,null,null,"Feb",0,0,0,0]
["Mar",30,0,1,10,0,0,null,null,null,"Mar",0,0,0,0,null,"Whole Installation table A5:G18:"]
["Apr",30,0,0,10,0,0,null,null,null,"Apr",0,0,0,0,null,"Mean: for 1/2 hourly and daily periods calculate mean of values across all operational combustion lines for the month"]
["May",30,0,0,10,0,0,null,null,null,"May",0,0,0,0]
["Jun",30,0,0,10,0,0,null,null,null,"Jun",0,0,0,0]
["Jul",30,0,9,10,0,0,null,null,null,"Jul",0,1,0,0,null,"Maximum: for 1/2 hourly and daily periods use the highest value across all operational combustion lines for the month"]
["Aug",30,0,27,10,0,7,null,null,null,"Aug",0,6,0,0]
["Sep",30,0,2,10,0,0,null,null,null,"Sep",0,0,0,0]
["Oct",30,0,2,10,0,1,null,null,null,"Oct",0,0,0,0]
["Nov",30,0,1,10,0,1,null,null,null,"Nov",0,0,0,0]
["Dec",30,0.5,3,10,0.5,2,null,null,null,"Dec",1,3,1,2]
[null,null,null,null,null,null,null,null,null,null,"Annual",{"$f":"AVERAGE(L7:L18)","v":8.3333333333333329E-2},{"$f":"MAX(M7:M18)","v":6},{"$f":"AVERAGE(N7:N18)","v":8.3333333333333329E-2},{"$f":"MAX(O7:O18)","v":2}]
[]
[null,null,null,null,null,null,null,null,null,{"$f":"+A6","v":2021},"mg/Nm3","Monthly 1/2 hourly mean","Monthly 1/2 hourly maximum","Monthly daily mean","Monthly daily maximum"]
[null,null,null,null,null,null,null,null,null,"A2","Jan",0,0,0,0]
[null,null,null,null,null,null,null,null,null,null,"Feb",0,0,0,0]
[null,null,null,null,null,null,null,null,null,null,"Mar",0,1,0,0]
[null,null,null,null,null,null,null,null,null,null,"Apr",0,0,0,0]
[null,null,null,null,null,null,null,null,null,null,"May",0,0,0,0]
[null,null,null,null,null,null,null,null,null,null,"Jun",0,0,0,0]
[null,null,null,null,null,null,null,null,null,null,"Jul",0,9,0,0]
[null,null,null,null,null,null,null,null,null,null,"Aug",0,27,0,7]
[null,null,null,null,null,null,null,null,null,null,"Sep",0,2,0,0]
[null,null,null,null,null,null,null,null,null,null,"Oct",0,2,0,1]
[null,null,null,null,null,null,null,null,null,null,"Nov",0,1,0,1]
[null,null,null,null,null,null,null,null,null,null,"Dec",0,2,0,1]
[null,null,null,null,null,null,null,null,null,null,"Annual",{"$f":"AVERAGE(L22:L33)","v":0},{"$f":"MAX(M22:M33)","v":27},{"$f":"AVERAGE(N22:N33)","v":0},{"$f":"MAX(O22:O33)","v":7}]
[]
[null,null,null,null,null,null,null,null,null,{"$f":"+A6","v":2021},"mg/Nm3","Monthly 1/2 hourly mean","Monthly 1/2 hourly maximum","Monthly daily mean","Monthly daily maximum"]
[null,null,null,null,null,null,null,null,null,"A3","Jan"]
[null,null,null,null,null,null,null,null,null,null,"Feb"]
[null,null,null,null,null,null,null,null,null,null,"Mar"]
[null,null,null,null,null,null,null,null,null,null,"Apr"]
[null,null,null,null,null,null,null,null,null,null,"May"]
[null,null,null,null,null,null,null,null,null,null,"Jun"]
[null,null,null,null,null,null,null,null,null,null,"Jul"]
[null,null,null,null,null,null,null,null,null,null,"Aug"]
[null,null,null,null,null,null,null,null,null,null,"Sep"]
[null,null,null,null,null,null,null,null,null,null,"Oct"]
[null,null,null,null,null,null,null,null,null,null,"Nov"]
["Comments :",null,null,null,null,null,null,null,null,null,"Dec"]
[null,null,null,null,null,null,null,null,null,null,"Annual",{"$f":"AVERAGE(L37:L48)","v":{"$error":"#DIV/0!"}},{"$f":"MAX(M37:M48)","v":0},{"$f":"AVERAGE(N37:N48)","v":{"$error":"#DIV/0!"}},{"$f":"MAX(O37:O48)","v":0}]
[]
[null,null,null,null,null,null,null,null,null,{"$f":"+A6","v":2021},"mg/Nm3","Monthly 1/2 hourly mean","Monthly 1/2 hourly maximum","Monthly daily mean","Monthly daily maximum"]
[null,null,null,null,null,null,null,null,null,"A4","Jan"]
[null,null,null,null,null,null,null,null,null,null,"Feb"]
[null,null,null,null,null,null,null,null,null,null,"Mar"]
[null,null,null,null,null,null,null,null,null,null,"Apr"]
[null,null,null,null,null,null,null,null,null,null,"May"]
[null,null,null,null,null,null,null,null,null,null,"Jun"]
[null,null,null,null,null,null,null,null,null,null,"Jul"]
[null,null,null,null,null,null,null,null,null,null,"Aug"]
[null,null,null,null,null,null,null,null,null,null,"Sep"]
[null,null,null,null,null,null,null,null,null,null,"Oct"]
[null,null,null,null,null,null,null,null,null,null,"Nov"]
[null,null,null,null,null,null,null,null,null,null,"Dec"]
[null,null,null,null,null,null,null,null,null,null,"Annual",{"$f":"AVERAGE(L52:L63)","v":{"$error":"#DIV/0!"}},{"$f":"MAX(M52:M63)","v":0},{"$f":"AVERAGE(N52:N63)","v":{"$error":"#DIV/0!"}},{"$f":"MAX(O52:O63)","v":0}]
[]
[null,null,null,null,null,null,null,null,null,{"$f":"+A6","v":2021},"mg/Nm3","Monthly 1/2 hourly mean","Monthly 1/2 hourly maximum","Monthly daily mean","Monthly daily maximum"]
[null,null,null,null,null,null,null,null,null,"A5","Jan"]
[null,null,null,null,null,null,null,null,null,null,"Feb"]
[null,null,null,null,null,null,null,null,null,null,"Mar"]
[null,null,null,null,null,null,null,null,null,null,"Apr"]
[null,null,null,null,null,null,null,null,null,null,"May"]
[null,null,null,null,null,null,null,null,null,null,"Jun"]
[null,null,null,null,null,null,null,null,null,null,"Jul"]
[null,null,null,null,null,null,null,null,null,null,"Aug"]
[null,null,null,null,null,null,null,null,null,null,"Sep"]
[null,null,null,null,null,null,null,null,null,null,"Oct"]
[null,null,null,null,null,null,null,null,null,null,"Nov"]
[null,null,null,null,null,null,null,null,null,null,"Dec"]
[null,null,null,null,null,null,null,null,null,null,"Annual",{"$f":"AVERAGE(L67:L78)","v":{"$error":"#DIV/0!"}},{"$f":"MAX(M67:M78)","v":0},{"$f":"AVERAGE(N67:N78)","v":{"$error":"#DIV/0!"}},{"$f":"MAX(O67:O78)","v":0}]

{"sheet":"CO 95% 10 min","index":19,"n_rows":79,"n_cols":19,"rows_kept":79,"cut":false,"hidden":false,"merged":[[3,18,7,20],[9,18,11,20],[12,18,15,20],[66,10,78,10],[4,1,4,4],[4,5,4,7],[4,10,4,16],[6,10,18,10],[21,10,33,10],[36,10,48,10],[47,0,47,7],[48,0,51,7],[51,10,63,10]]}
[{"$f":"+'Cover Page'!$B$29","v":"Annual Performance Report 2021"},null,null,null,{"$f":"+'Cover Page'!$B$33","v":"Wolverhampton Energy from Waste Facility"}]
[]
["Monitoring of Carbon Monoxide (10-minute avg)",null,null,null,"Whole Installation",null,null,"See  Notes in Cell S3",null,{"$f":"+A3","v":"Monitoring of Carbon Monoxide (10-minute avg)"},null,null,null,null,"Per Combustion Line",null,"Notes:",null,"Notes:"]
[null,null,null,null,null,null,null,null,null,null,null,null,null,null,null,null,null,null,"User to add logic to complete Whole installation, Table A5:H18. From the data in Per Combustion Line, Table K6:Q79, subject to No. of lines installed"]
["mg/Nm3","10-minute Reference Periods",null,null,null,"Daily Reference Periods"]
[{"$f":"+'Cover Page'!C39","v":2021},"95%ile 10-min avg CO ELV","95%ile 10-min avg maximum","Monthly CO 10-min avg mean","10-min avg maximum","Daily CO ELV","Monthly daily mean","Highest daily maximum",null,null,{"$f":"+A6","v":2021},"mg/Nm3","95%ile 10-min avg maximum","Monthly CO 10-min avg mean","10-min avg maximum","Monthly daily mean","Monthly daily maximum"]
["Jan",150,{"$f":"MAX(M7,M22)","v":19.02},{"$f":"AVERAGE(N7,N22)","v":9.5},{"$f":"MAX(O7,O22)","v":98},50,{"$f":"AVERAGE(P7,P22)","v":9.5},{"$f":"MAX(Q7,Q22)","v":16},null,null,"A1","Jan",14.45,9,42,9,15]
["Feb",{"$f":"+B7","v":150},{"$f":"MAX(M8,M23)","v":21.51},{"$f":"AVERAGE(N8,N23)","v":9.5},{"$f":"MAX(O8,O23)","v":47},{"$f":"+F7","v":50},{"$f":"AVERAGE(P8,P23)","v":9.5},{"$f":"MAX(Q8,Q23)","v":20},null,null,null,"Feb",12.36,8,23,8,13]
["Mar",{"$f":"+B8","v":150},14.4,8,266,{"$f":"+F8","v":50},8,38,null,null,null,"Mar",9.66,8,266,8,38,null,"Whole Installation table A5:H18:"]
["Apr",150,14.34,7,44,50,7,17,null,null,null,"Apr",12.77,7,44,7,16,null,"Mean: for 10-min and daily periods use average of all operational combustion lines."]
["May",150,18.73,8,49,50,8,29,null,null,null,"May",10.07,7,49,7,29]
["Jun",150,17.18,8,47,50,8,29,null,null,null,"Jun",16.5,8,43,8,29]
["Jul",150,70.42,15,136,50,15,38,null,null,null,"Jul",70.42,19,136,19,38,null,"Maximum: for 10-min and daily periods use the highest of all operational combustion lines in any month."]
["Aug",150,19.43,9,64,50,9,21,null,null,null,"Aug",14.75,8,30,8,14]
["Sep",150,18.68,10.5,48,50,10.5,46,null,null,null,"Sep",18.600000000000001,11,48,11,46]
["Oct",150,39.11,12.5,140,50,12.5,48,null,null,null,"Oct",22.44,12,50,12,22]
["Nov",150,24.81,9.5,85,50,9.5,30,null,null,null,"Nov",24.81,12,85,12,30]
["Dec",150,17.03,9.5,39,50,9.5,17,null,null,null,"Dec",17.03,11,25,11,17]
[null,null,null,null,null,null,null,null,null,null,null,"Annual",{"$f":"AVERAGE(M7:M18)","v":20.321666666666669},{"$f":"AVERAGE(N7:N18)","v":10},{"$f":"MAX(O7:O18)","v":266},{"$f":"AVERAGE(P7:P18)","v":10},{"$f":"MAX(Q7:Q18)","v":46}]
[]
[null,null,null,null,null,null,null,null,null,null,{"$f":"+A6","v":2021},"mg/Nm3","95%ile 10-min avg maximum","Monthly CO 10-min avg mean","10-min avg maximum","Monthly daily mean","Monthly daily maximum"]
[null,null,null,null,null,null,null,null,null,null,"A2","Jan",19.02,10,98,10,16]
[null,null,null,null,null,null,null,null,null,null,null,"Feb",21.51,11,47,11,20]
[null,null,null,null,null,null,null,null,null,null,null,"Mar",14.4,8,31,8,14]
[null,null,null,null,null,null,null,null,null,null,null,"Apr",14.34,7,33,7,17]
[null,null,null,null,null,null,null,null,null,null,null,"May",18.73,9,48,9,17]
[null,null,null,null,null,null,null,null,null,null,null,"Jun",17.18,8,47,8,17]
[null,null,null,null,null,null,null,null,null,null,null,"Jul",27.36,11,64,11,21]
[null,null,null,null,null,null,null,null,null,null,null,"Aug",19.43,10,64,10,21]
[null,null,null,null,null,null,null,null,null,null,null,"Sep",18.68,10,41,10,24]
[null,null,null,null,null,null,null,null,null,null,null,"Oct",39.11,13,140,13,48]
[null,null,null,null,null,null,null,null,null,null,null,"Nov",15.59,7,30,7,15]
[null,null,null,null,null,null,null,null,null,null,null,"Dec",14.12,8,39,8,14]
[null,null,null,null,null,null,null,null,null,null,null,"Annual",{"$f":"AVERAGE(M22:M33)","v":19.955833333333338},{"$f":"AVERAGE(N22:N33)","v":9.3333333333333339},{"$f":"MAX(O22:O33)","v":140},{"$f":"AVERAGE(P22:P33)","v":9.3333333333333339},{"$f":"MAX(Q22:Q33)","v":48}]
[]
[null,null,null,null,null,null,null,null,null,null,{"$f":"+A6","v":2021},"mg/Nm3","95%ile 10-min avg maximum","Monthly CO 10-min avg mean","10-min avg maximum","Monthly daily mean","Monthly daily maximum"]
[null,null,null,null,null,null,null,null,null,null,"A3","Jan"]
[null,null,null,null,null,null,null,null,null,null,null,"Feb"]
[null,null,null,null,null,null,null,null,null,null,null,"Mar"]
[null,null,null,null,null,null,null,null,null,null,null,"Apr"]
[null,null,null,null,null,null,null,null,null,null,null,"May"]
[null,null,null,null,null,null,null,null,null,null,null,"Jun"]
[null,null,null,null,null,null,null,null,null,null,null,"Jul"]
[null,null,null,null,null,null,null,null,null,null,null,"Aug"]
[null,null,null,null,null,null,null,null,null,null,null,"Sep"]
[null,null,null,null,null,null,null,null,null,null,null,"Oct"]
[null,null,null,null,null,null,null,null,null,null,null,"Nov"]
["Comments :",null,null,null,null,null,null,null,null,null,null,"Dec"]
["Environment Agency explanatory note: The 10-minute average ELV is based on the “95th percentile”. In this case this means that 95% of the 10 minute averages in the relevant 24-hour period (i.e. 137) must be below 150 mg/Nm3, and 5% (i.e. 7) are allowed to be any value above 150 mg/Nm3. Whilst we expect operators to minimise CO emissions at all times, it is perfectly acceptable for the value of the maximum 10-minute average to be above 150 mg/Nm3, provided the 95th percentile ELV has been met for that period. ",null,null,null,null,null,null,null,null,null,null,"Annual",{"$f":"AVERAGE(M37:M48)","v":{"$error":"#DIV/0!"}},null,{"$f":"MAX(O37:O48)","v":0},{"$f":"AVERAGE(P37:P48)","v":{"$error":"#DIV/0!"}},{"$f":"MAX(Q37:Q48)","v":0}]
[]
[null,null,null,null,null,null,null,null,null,null,{"$f":"+A6","v":2021},"mg/Nm3","95%ile 10-min avg maximum","Monthly CO 10-min avg mean","10-min avg maximum","Monthly daily mean","Monthly daily maximum"]
[null,null,null,null,null,null,null,null,null,null,"A4","Jan"]
[null,null,null,null,null,null,null,null,null,null,null,"Feb"]
[null,null,null,null,null,null,null,null,null,null,null,"Mar"]
[null,null,null,null,null,null,null,null,null,null,null,"Apr"]
[null,null,null,null,null,null,null,null,null,null,null,"May"]
[null,null,null,null,null,null,null,null,null,null,null,"Jun"]
[null,null,null,null,null,null,null,null,null,null,null,"Jul"]
[null,null,null,null,null,null,null,null,null,null,null,"Aug"]
[null,null,null,null,null,null,null,null,null,null,null,"Sep"]
[null,null,null,null,null,null,null,null,null,null,null,"Oct"]
[null,null,null,null,null,null,null,null,null,null,null,"Nov"]
[null,null,null,null,null,null,null,null,null,null,null,"Dec"]
[null,null,null,null,null,null,null,null,null,null,null,"Annual",{"$f":"AVERAGE(M52:M63)","v":{"$error":"#DIV/0!"}},null,{"$f":"MAX(O52:O63)","v":0},{"$f":"AVERAGE(P52:P63)","v":{"$error":"#DIV/0!"}},{"$f":"MAX(Q52:Q63)","v":0}]
[]
[null,null,null,null,null,null,null,null,null,null,{"$f":"+A6","v":2021},"mg/Nm3","95%ile 10-min avg maximum","Monthly CO 10-min avg mean","10-min avg maximum","Monthly daily mean","Monthly daily maximum"]
[null,null,null,null,null,null,null,null,null,null,"A5","Jan"]
[null,null,null,null,null,null,null,null,null,null,null,"Feb"]
[null,null,null,null,null,null,null,null,null,null,null,"Mar"]
[null,null,null,null,null,null,null,null,null,null,null,"Apr"]
[null,null,null,null,null,null,null,null,null,null,null,"May"]
[null,null,null,null,null,null,null,null,null,null,null,"Jun"]
[null,null,null,null,null,null,null,null,null,null,null,"Jul"]
[null,null,null,null,null,null,null,null,null,null,null,"Aug"]
[null,null,null,null,null,null,null,null,null,null,null,"Sep"]
[null,null,null,null,null,null,null,null,null,null,null,"Oct"]
[null,null,null,null,null,null,null,null,null,null,null,"Nov"]
[null,null,null,null,null,null,null,null,null,null,null,"Dec"]
[null,null,null,null,null,null,null,null,null,null,null,"Annual",{"$f":"AVERAGE(M67:M78)","v":{"$error":"#DIV/0!"}},null,{"$f":"MAX(O67:O78)","v":0},{"$f":"AVERAGE(P67:P78)","v":{"$error":"#DIV/0!"}},{"$f":"MAX(Q67:Q78)","v":0}]

{"sheet":"NH3","index":20,"n_rows":79,"n_cols":17,"rows_kept":79,"cut":false,"hidden":false,"merged":[[3,16,7,18],[9,16,11,18],[12,16,15,18],[66,9,78,9],[4,1,4,3],[4,4,4,6],[4,9,4,14],[6,9,18,9],[21,9,33,9],[36,9,48,9],[47,0,47,6],[48,0,51,6],[51,9,63,9]]}
[{"$f":"+'Cover Page'!$B$29","v":"Annual Performance Report 2021"},null,null,null,{"$f":"+'Cover Page'!$B$33","v":"Wolverhampton Energy from Waste Facility"}]
[]
["Monitoring of Ammnonia emissions ",null,null,"Whole Installation",null,null,"See  Notes in Cell Q3",null,null,{"$f":"+A3","v":"Monitoring of Ammnonia emissions "},null,null,null,"Per Combustion Line",null,null,"Notes:"]
[null,null,null,null,null,null,null,null,null,null,null,null,null,null,null,null,"User to add logic to complete Whole installation, Table A5:G18. From the data in Per Combustion Line, Table J6:O79, subject to No. of lines installed"]
["mg/Nm3","1/2 Hourly Reference Periods",null,null,"Daily Reference Periods"]
[{"$f":"+'Cover Page'!C39","v":2021},"1/2 hourly NH3 ELV","Monthly 1/2 hourly mean","Highest 1/2 hourly maximum","Daily NH3 ELV","Monthly daily mean","Highest daily maximum",null,null,{"$f":"+A6","v":2021},"mg/Nm3","Monthly 1/2 hourly mean","Monthly 1/2 hourly maximum","Monthly daily mean","Monthly daily maximum"]
["Jan",0,{"$f":"AVERAGE(L7,L22)","v":1.5},{"$f":"MAX(M7,M22)","v":115},10,{"$f":"AVERAGE(N7,N22)","v":1.5},{"$f":"MAX(O7,O22)","v":17},null,null,"A1","Jan",2,102,2,17]
["Feb",{"$f":"+B7","v":0},{"$f":"AVERAGE(L8,L23)","v":0.5},{"$f":"MAX(M8,M23)","v":26},{"$f":"+E7","v":10},{"$f":"AVERAGE(N8,N23)","v":0.5},{"$f":"MAX(O8,O23)","v":3},null,null,null,"Feb",1,24,1,2]
["Mar",{"$f":"+B8","v":0},0,41,{"$f":"+E8","v":10},0,1,null,null,null,"Mar",0,41,0,1,null,"Whole Installation table A5:G18:"]
["Apr",0,0.5,36,10,0.5,4,null,null,null,"Apr",0,31,0,1,null,"Mean: for 1/2 hourly and daily periods calculate mean of values across all operational combustion lines for the month"]
["May",0,2,38,10,2,9,null,null,null,"May",0,11,0,1]
["Jun",0,1.5,46,10,1.5,7,null,null,null,"Jun",1,13,1,1]
["Jul",0,2,93,10,2,11,null,null,null,"Jul",2,93,2,11,null,"Maximum: for 1/2 hourly and daily periods use the highest value across all operational combustion lines for the month"]
["Aug",0,2,33,10,2,9,null,null,null,"Aug",0,12,0,1]
["Sep",0,2,31,10,2,8,null,null,null,"Sep",0,14,0,1]
["Oct",0,1.5,73,10,1.5,16,null,null,null,"Oct",0,14,0,1]
["Nov",0,1,84,10,1,9,null,null,null,"Nov",1,31,1,7]
["Dec",0,{"$f":"AVERAGE(L18,L33)","v":1.5},{"$f":"MAX(M18,M33)","v":110},10,1.5,8,null,null,null,"Dec",1,30,1,2]
[null,null,null,null,null,null,null,null,null,null,"Annual",{"$f":"AVERAGE(L7:L18)","v":0.66666666666666663},{"$f":"MAX(M7:M18)","v":102},{"$f":"AVERAGE(N7:N18)","v":0.66666666666666663},{"$f":"MAX(O7:O18)","v":17}]
[]
[null,null,null,null,null,null,null,null,null,{"$f":"+A6","v":2021},"mg/Nm3","Monthly 1/2 hourly mean","Monthly 1/2 hourly maximum","Monthly daily mean","Monthly daily maximum"]
[null,null,null,null,null,null,null,null,null,"A2","Jan",1,115,1,5]
[null,null,null,null,null,null,null,null,null,null,"Feb",0,26,0,3]
[null,null,null,null,null,null,null,null,null,null,"Mar",0,7,0,1]
[null,null,null,null,null,null,null,null,null,null,"Apr",1,36,1,4]
[null,null,null,null,null,null,null,null,null,null,"May",4,38,4,9]
[null,null,null,null,null,null,null,null,null,null,"Jun",2,46,2,7]
[null,null,null,null,null,null,null,null,null,null,"Jul",2,74,2,7]
[null,null,null,null,null,null,null,null,null,null,"Aug",4,33,4,9]
[null,null,null,null,null,null,null,null,null,null,"Sep",4,31,4,8]
[null,null,null,null,null,null,null,null,null,null,"Oct",3,73,3,16]
[null,null,null,null,null,null,null,null,null,null,"Nov",1,84,1,9]
[null,null,null,null,null,null,null,null,null,null,"Dec",2,110,2,8]
[null,null,null,null,null,null,null,null,null,null,"Annual",{"$f":"AVERAGE(L22:L33)","v":2},{"$f":"MAX(M22:M33)","v":115},{"$f":"AVERAGE(N22:N33)","v":2},{"$f":"MAX(O22:O33)","v":16}]
[]
[null,null,null,null,null,null,null,null,null,{"$f":"+A6","v":2021},"mg/Nm3","Monthly 1/2 hourly mean","Monthly 1/2 hourly maximum","Monthly daily mean","Monthly daily maximum"]
[null,null,null,null,null,null,null,null,null,"A3","Jan"]
[null,null,null,null,null,null,null,null,null,null,"Feb"]
[null,null,null,null,null,null,null,null,null,null,"Mar"]
[null,null,null,null,null,null,null,null,null,null,"Apr"]
[null,null,null,null,null,null,null,null,null,null,"May"]
[null,null,null,null,null,null,null,null,null,null,"Jun"]
[null,null,null,null,null,null,null,null,null,null,"Jul"]
[null,null,null,null,null,null,null,null,null,null,"Aug"]
[null,null,null,null,null,null,null,null,null,null,"Sep"]
[null,null,null,null,null,null,null,null,null,null,"Oct"]
[null,null,null,null,null,null,null,null,null,null,"Nov"]
["Comments :",null,null,null,null,null,null,null,null,null,"Dec"]
["An indicated ELV value of zero in the table above means that no ammonia limit is set in the permit.  ",null,null,null,null,null,null,null,null,null,"Annual",{"$f":"AVERAGE(L37:L48)","v":{"$error":"#DIV/0!"}},{"$f":"MAX(M37:M48)","v":0},{"$f":"AVERAGE(N37:N48)","v":{"$error":"#DIV/0!"}},{"$f":"MAX(O37:O48)","v":0}]
[]
[null,null,null,null,null,null,null,null,null,{"$f":"+A6","v":2021},"mg/Nm3","Monthly 1/2 hourly mean","Monthly 1/2 hourly maximum","Monthly daily mean","Monthly daily maximum"]
[null,null,null,null,null,null,null,null,null,"A4","Jan"]
[null,null,null,null,null,null,null,null,null,null,"Feb"]
[null,null,null,null,null,null,null,null,null,null,"Mar"]
[null,null,null,null,null,null,null,null,null,null,"Apr"]
[null,null,null,null,null,null,null,null,null,null,"May"]
[null,null,null,null,null,null,null,null,null,null,"Jun"]
[null,null,null,null,null,null,null,null,null,null,"Jul"]
[null,null,null,null,null,null,null,null,null,null,"Aug"]
[null,null,null,null,null,null,null,null,null,null,"Sep"]
[null,null,null,null,null,null,null,null,null,null,"Oct"]
[null,null,null,null,null,null,null,null,null,null,"Nov"]
[null,null,null,null,null,null,null,null,null,null,"Dec"]
[null,null,null,null,null,null,null,null,null,null,"Annual",{"$f":"AVERAGE(L52:L63)","v":{"$error":"#DIV/0!"}},{"$f":"MAX(M52:M63)","v":0},{"$f":"AVERAGE(N52:N63)","v":{"$error":"#DIV/0!"}},{"$f":"MAX(O52:O63)","v":0}]
[]
[null,null,null,null,null,null,null,null,null,{"$f":"+A6","v":2021},"mg/Nm3","Monthly 1/2 hourly mean","Monthly 1/2 hourly maximum","Monthly daily mean","Monthly daily maximum"]
[null,null,null,null,null,null,null,null,null,"A5","Jan"]
[null,null,null,null,null,null,null,null,null,null,"Feb"]
[null,null,null,null,null,null,null,null,null,null,"Mar"]
[null,null,null,null,null,null,null,null,null,null,"Apr"]
[null,null,null,null,null,null,null,null,null,null,"May"]
[null,null,null,null,null,null,null,null,null,null,"Jun"]
[null,null,null,null,null,null,null,null,null,null,"Jul"]
[null,null,null,null,null,null,null,null,null,null,"Aug"]
[null,null,null,null,null,null,null,null,null,null,"Sep"]
[null,null,null,null,null,null,null,null,null,null,"Oct"]
[null,null,null,null,null,null,null,null,null,null,"Nov"]
[null,null,null,null,null,null,null,null,null,null,"Dec"]
[null,null,null,null,null,null,null,null,null,null,"Annual",{"$f":"AVERAGE(L67:L78)","v":{"$error":"#DIV/0!"}},{"$f":"MAX(M67:M78)","v":0},{"$f":"AVERAGE(N67:N78)","v":{"$error":"#DIV/0!"}},{"$f":"MAX(O67:O78)","v":0}]